Workbook

Sheet Hoja1
N1: Código: M-AC-F012
N2: Versión: 01 | Z2: TIPO DE ENTIDAD O USUARIO | AE2: DÍAS NO LABORABLES
N3: Fecha: 15/01/2017 | Z3: CIUDADANO | AE3: 43831
N4: Página: 1 de 1 | Z4: ACADEMIA | AE4: 43834
Z5: EMPRESA PRIVADA | AE5: 43835
B6: Dependencia: | Z6: ENTIDAD PÚBLICA | AE6: 43836
Z7: EXTRANJERO | AE7: 43841
B8: Período de Reporte | Z8: FUNCIONARIO IDEAM | AE8: 43842
Z9: ONG/ORG | AE9: 43848
A10: DATOS DEL REQUERIMIENTO | D10: POSTURA DE REQUERIMIENTO | G10: RESOLUCION DEL REQUERIMIENTO | L10: ANÁLISIS DE RESPUESTAS | AE10: 43849
A11: No. | B11: No. DE REQUERIMIENTO | C11: FECHA DE REQUERIMIENTO (dd/mm/aaaa) | D11: MEDIO RECEPCIÓN | E11: TIPO DE REQUERIMIENTO | F11: PRODUCTO O SERVICIO AL CUAL SE REFIERE EL REQUERIMIENTO | G11: ¿ EL REQUERIMIENTO FUE ESCALADO? | H11: DEPENDENCIA QUE DA RESPUESTA O A LA QUE SE DIRECCIONA | I11: FECHA DE RESOLUCIÓN DEL REQUERIMIENTO (dd/mm/aaaa) | J11: CANAL POR EL CUAL FUE RESUELTO EL REQUERIMIENTO | K11: OBSERVACIONES | L11: FECHA OPORTUNA DE RESPUESTA | M11: ESTADO (A TIEMPO, FUERA DE TIEMPO, SIN RESPUESTA) | N11: TIEMPO QUE TARDÓ EN DAR RESPUESTA | O11: DÍAS VENCIDOS CON RESPECTO A FECHA OPORTUNA DE RESPUESTA | Z11: GÉNERO | AE11: 43855
A12: =IF(B12<>"",1,"") -> 1 | B12: 20209050054342 | C12: 44013 | D12: MODULO CONTACTENOS | E12: SOLICITUD DE INFORMACIÓN Y DOCUMENTOS | F12: SOLICITUD DE INFORMACIÓN HIDROMETEOROLÓGICA | G12: NO | H12: GRUPO DE SERVICIO AL CIUDADANO | I12: 44030 | J12: CORREO ELECTRÓNICO | L12: =IFERROR(WORKDAY(C12,R12,DiasNOLaborables),"") -> 44042 | M12: =+IF(C12="","",IF(I12="","SIN RESPUESTA",(IF(I12<=L12,"A TIEMPO","FUERA DE TIEMPO")))) -> A TIEMPO | N12: =IF(I12="","",NETWORKDAYS(C12+1,I12,DiasNOLaborables)) -> 12 | O12: =IF(NETWORKDAYS(L12+1,I12,DiasNOLaborables)<=0,"",NETWORKDAYS(L12+1,I12,DiasNOLaborables)) ->  | R12: =IFERROR(VLOOKUP(E12,$Z$50:$AA$63,2),"") -> 20 | Z12: FEMENINO | AE12: 43856
A13: =IF(A12<>"",A12+1,"") -> 2 | B13: 20209050054352 | C13: 44013 | D13: MODULO CONTACTENOS | E13: SOLICITUD DE INFORMACIÓN Y DOCUMENTOS | F13: SOLICITUD DE INFORMACIÓN HIDROMETEOROLÓGICA | G13: NO | H13: GRUPO DE SERVICIO AL CIUDADANO | I13: 44030 | J13: CORREO ELECTRÓNICO | L13: =IFERROR(WORKDAY(C13,R13,DiasNOLaborables),"") -> 44042 | M13: =+IF(C13="","",IF(I13="","SIN RESPUESTA",(IF(I13<=L13,"A TIEMPO","FUERA DE TIEMPO")))) -> A TIEMPO | N13: =IF(I13="","",NETWORKDAYS(C13+1,I13,DiasNOLaborables)) -> 12 | R13: =IFERROR(VLOOKUP(E13,$Z$50:$AA$63,2),"") -> 20 | Z13: MASCULINO | AE13: 43862
A14: =IF(B13<>"",A13+1,"") -> 3 | B14: 20209050054362 | C14: 44013 | D14: MODULO CONTACTENOS | E14: SOLICITUD DE INFORMACIÓN Y DOCUMENTOS | F14: SOLICITUD DE INFORMACIÓN HIDROMETEOROLÓGICA | G14: NO | H14: GRUPO DE SERVICIO AL CIUDADANO | I14: 44030 | J14: CORREO ELECTRÓNICO | L14: =IFERROR(WORKDAY(C14,R14,DiasNOLaborables),"") -> 44042 | M14: =+IF(C14="","",IF(I14="","SIN RESPUESTA",(IF(I14<=L14,"A TIEMPO","FUERA DE TIEMPO")))) -> A TIEMPO | N14: =IF(I14="","",NETWORKDAYS(C14+1,I14,DiasNOLaborables)) -> 12 | R14: 20 | Z14: PERSONA JURÍDICA | AE14: 43863
A15: 4 | B15: 20209050054372 | C15: 44013 | D15: MODULO CONTACTENOS | E15: SOLICITUD DE INFORMACIÓN Y DOCUMENTOS | F15: SOLICITUD DE INFORMACIÓN HIDROMETEOROLÓGICA | G15: NO | H15: GRUPO DE SERVICIO AL CIUDADANO | I15: 44030 | J15: CORREO ELECTRÓNICO | L15: =IFERROR(WORKDAY(C15,R15,DiasNOLaborables),"") -> 44042 | M15: =+IF(C15="","",IF(I15="","SIN RESPUESTA",(IF(I15<=L15,"A TIEMPO","FUERA DE TIEMPO")))) -> A TIEMPO | N15: =IF(I15="","",NETWORKDAYS(C15+1,I15,DiasNOLaborables)) -> 12 | R15: 20 | AE15: 43869
A16: 5 | B16: 20209050054382 | C16: 44013 | D16: MODULO CONTACTENOS | E16: SOLICITUD DE INFORMACIÓN Y DOCUMENTOS | F16: SOLICITUD DE INFORMACIÓN HIDROMETEOROLÓGICA | G16: NO | H16: GRUPO DE SERVICIO AL CIUDADANO | I16: 44030 | J16: CORREO ELECTRÓNICO | L16: =IFERROR(WORKDAY(C16,R16,DiasNOLaborables),"") -> 44042 | M16: =+IF(C16="","",IF(I16="","SIN RESPUESTA",(IF(I16<=L16,"A TIEMPO","FUERA DE TIEMPO")))) -> A TIEMPO | N16: =IF(I16="","",NETWORKDAYS(C16+1,I16,DiasNOLaborables)) -> 12 | R16: 20 | Z16: DEPENDENCIA QUE DA RESPUESTA O LA QUE SE DIRECCIONA | AE16: 43870
A17: 6 | B17: 20209050054542 | C17: 44013 | D17: MODULO CONTACTENOS | E17: SOLICITUD DE INFORMACIÓN Y DOCUMENTOS | F17: SOLICITUD DE INFORMACIÓN HIDROMETEOROLÓGICA | G17: NO | H17: GRUPO DE SERVICIO AL CIUDADANO | I17: 44030 | J17: CORREO ELECTRÓNICO | L17: =IFERROR(WORKDAY(C17,R17,DiasNOLaborables),"") -> 44042 | M17: =+IF(C17="","",IF(I17="","SIN RESPUESTA",(IF(I17<=L17,"A TIEMPO","FUERA DE TIEMPO")))) -> A TIEMPO | N17: =IF(I17="","",NETWORKDAYS(C17+1,I17,DiasNOLaborables)) -> 12 | R17: 20 | Z17: AREA OPERATIVA No. 1 | AE17: 43876
A18: 7 | B18: 20209050054562 | C18: 44013 | D18: MODULO CONTACTENOS | E18: SOLICITUD DE INFORMACIÓN Y DOCUMENTOS | F18: SOLICITUD DE INFORMACIÓN HIDROMETEOROLÓGICA | G18: NO | H18: GRUPO DE SERVICIO AL CIUDADANO | I18: 44030 | J18: CORREO ELECTRÓNICO | L18: =IFERROR(WORKDAY(C18,R18,DiasNOLaborables),"") -> 44042 | M18: =+IF(C18="","",IF(I18="","SIN RESPUESTA",(IF(I18<=L18,"A TIEMPO","FUERA DE TIEMPO")))) -> A TIEMPO | N18: =IF(I18="","",NETWORKDAYS(C18+1,I18,DiasNOLaborables)) -> 12 | R18: 20 | Z18: AREA OPERATIVA No. 2 | AE18: 43877
A19: 8 | B19: 20209050054572 | C19: 44013 | D19: MODULO CONTACTENOS | E19: SOLICITUD DE INFORMACIÓN Y DOCUMENTOS | F19: SOLICITUD DE INFORMACIÓN HIDROMETEOROLÓGICA | G19: NO | H19: GRUPO DE SERVICIO AL CIUDADANO | I19: 44030 | J19: CORREO ELECTRÓNICO | L19: =IFERROR(WORKDAY(C19,R19,DiasNOLaborables),"") -> 44042 | M19: =+IF(C19="","",IF(I19="","SIN RESPUESTA",(IF(I19<=L19,"A TIEMPO","FUERA DE TIEMPO")))) -> A TIEMPO | N19: =IF(I19="","",NETWORKDAYS(C19+1,I19,DiasNOLaborables)) -> 12 | R19: 20 | Z19: AREA OPERATIVA No. 3 | AE19: 43883
A20: 9 | B20: 20209050054592 | C20: 44013 | D20: MODULO CONTACTENOS | E20: SOLICITUD DE INFORMACIÓN Y DOCUMENTOS | F20: SOLICITUD DE INFORMACIÓN HIDROMETEOROLÓGICA | G20: NO | H20: GRUPO DE SERVICIO AL CIUDADANO | I20: 44030 | J20: CORREO ELECTRÓNICO | L20: =IFERROR(WORKDAY(C20,R20,DiasNOLaborables),"") -> 44042 | M20: =+IF(C20="","",IF(I20="","SIN RESPUESTA",(IF(I20<=L20,"A TIEMPO","FUERA DE TIEMPO")))) -> A TIEMPO | N20: =IF(I20="","",NETWORKDAYS(C20+1,I20,DiasNOLaborables)) -> 12 | R20: 20 | Z20: AREA OPERATIVA No. 4 | AE20: 43884
A21: 10 | B21: 20209050054602 | C21: 44013 | D21: MODULO CONTACTENOS | E21: SOLICITUD DE INFORMACIÓN Y DOCUMENTOS | F21: SOLICITUD DE INFORMACIÓN HIDROMETEOROLÓGICA | G21: NO | H21: GRUPO DE SERVICIO AL CIUDADANO | I21: 44030 | J21: CORREO ELECTRÓNICO | L21: =IFERROR(WORKDAY(C21,R21,DiasNOLaborables),"") -> 44042 | M21: =+IF(C21="","",IF(I21="","SIN RESPUESTA",(IF(I21<=L21,"A TIEMPO","FUERA DE TIEMPO")))) -> A TIEMPO | N21: =IF(I21="","",NETWORKDAYS(C21+1,I21,DiasNOLaborables)) -> 12 | R21: 20 | Z21: AREA OPERATIVA No. 5 | AE21: 43890
A22: 11 | B22: 20209050054622 | C22: 44013 | D22: MODULO CONTACTENOS | E22: SOLICITUD DE INFORMACIÓN Y DOCUMENTOS | F22: SOLICITUD DE INFORMACIÓN HIDROMETEOROLÓGICA | G22: NO | H22: GRUPO DE SERVICIO AL CIUDADANO | I22: 44030 | J22: CORREO ELECTRÓNICO | L22: =IFERROR(WORKDAY(C22,R22,DiasNOLaborables),"") -> 44042 | M22: =+IF(C22="","",IF(I22="","SIN RESPUESTA",(IF(I22<=L22,"A TIEMPO","FUERA DE TIEMPO")))) -> A TIEMPO | N22: =IF(I22="","",NETWORKDAYS(C22+1,I22,DiasNOLaborables)) -> 12 | R22: 20 | Z22: AREA OPERATIVA No. 6 | AE22: 43891
A23: 12 | B23: 20209050054652 | C23: 44013 | D23: MODULO CONTACTENOS | E23: SOLICITUD DE INFORMACIÓN Y DOCUMENTOS | F23: SOLICITUD DE INFORMACIÓN HIDROMETEOROLÓGICA | G23: NO | H23: GRUPO DE SERVICIO AL CIUDADANO | I23: 44030 | J23: CORREO ELECTRÓNICO | L23: =IFERROR(WORKDAY(C23,R23,DiasNOLaborables),"") -> 44042 | M23: =+IF(C23="","",IF(I23="","SIN RESPUESTA",(IF(I23<=L23,"A TIEMPO","FUERA DE TIEMPO")))) -> A TIEMPO | N23: =IF(I23="","",NETWORKDAYS(C23+1,I23,DiasNOLaborables)) -> 12 | R23: 20 | Z23: AREA OPERATIVA No. 7 | AE23: 43897
A24: 13 | B24: 20209050054872 | C24: 44014 | D24: MODULO CONTACTENOS | E24: SOLICITUD DE INFORMACIÓN Y DOCUMENTOS | F24: SOLICITUD DE INFORMACIÓN HIDROMETEOROLÓGICA | G24: NO | H24: GRUPO DE SERVICIO AL CIUDADANO | I24: 44030 | J24: CORREO ELECTRÓNICO | L24: =IFERROR(WORKDAY(C24,R24,DiasNOLaborables),"") -> 44043 | M24: =+IF(C24="","",IF(I24="","SIN RESPUESTA",(IF(I24<=L24,"A TIEMPO","FUERA DE TIEMPO")))) -> A TIEMPO | N24: =IF(I24="","",NETWORKDAYS(C24+1,I24,DiasNOLaborables)) -> 11 | R24: 20 | Z24: AREA OPERATIVA No. 8 | AE24: 43898
A25: 14 | B25: 20207090001422 | C25: 44014 | D25: MODULO CONTACTENOS | E25: SOLICITUD DE INFORMACIÓN Y DOCUMENTOS | F25: SOLICITUD DE INFORMACIÓN HIDROMETEOROLÓGICA | G25: NO | H25: GRUPO DE SERVICIO AL CIUDADANO | I25: 44030 | J25: CORREO ELECTRÓNICO | L25: =IFERROR(WORKDAY(C25,R25,DiasNOLaborables),"") -> 44043 | M25: =+IF(C25="","",IF(I25="","SIN RESPUESTA",(IF(I25<=L25,"A TIEMPO","FUERA DE TIEMPO")))) -> A TIEMPO | N25: =IF(I25="","",NETWORKDAYS(C25+1,I25,DiasNOLaborables)) -> 11 | R25: 20 | Z25: AREA OPERATIVA No. 9 | AE25: 43904
A26: 15 | B26: 20209050054882 | C26: 44014 | D26: MODULO CONTACTENOS | E26: SOLICITUD DE INFORMACIÓN Y DOCUMENTOS | F26: SOLICITUD DE INFORMACIÓN HIDROMETEOROLÓGICA | G26: NO | H26: GRUPO DE SERVICIO AL CIUDADANO | I26: 44030 | J26: CORREO ELECTRÓNICO | L26: =IFERROR(WORKDAY(C26,R26,DiasNOLaborables),"") -> 44043 | M26: =+IF(C26="","",IF(I26="","SIN RESPUESTA",(IF(I26<=L26,"A TIEMPO","FUERA DE TIEMPO")))) -> A TIEMPO | N26: =IF(I26="","",NETWORKDAYS(C26+1,I26,DiasNOLaborables)) -> 11 | R26: 20 | Z26: AREA OPERATIVA No. 10 | AE26: 43905
A27: 16 | B27: 20209050054912 | C27: 44014 | D27: MODULO CONTACTENOS | E27: SOLICITUD DE INFORMACIÓN Y DOCUMENTOS | F27: SOLICITUD DE INFORMACIÓN HIDROMETEOROLÓGICA | G27: NO | H27: GRUPO DE SERVICIO AL CIUDADANO | I27: 44030 | J27: CORREO ELECTRÓNICO | L27: =IFERROR(WORKDAY(C27,R27,DiasNOLaborables),"") -> 44043 | M27: =+IF(C27="","",IF(I27="","SIN RESPUESTA",(IF(I27<=L27,"A TIEMPO","FUERA DE TIEMPO")))) -> A TIEMPO | N27: =IF(I27="","",NETWORKDAYS(C27+1,I27,DiasNOLaborables)) -> 11 | R27: 20 | Z27: AREA OPERATIVA No. 11 | AE27: 43911
A28: 17 | B28: 20209050054892 | C28: 44014 | D28: MODULO CONTACTENOS | E28: SOLICITUD DE INFORMACIÓN Y DOCUMENTOS | F28: SOLICITUD DE INFORMACIÓN HIDROMETEOROLÓGICA | G28: NO | H28: GRUPO DE SERVICIO AL CIUDADANO | I28: 44030 | J28: CORREO ELECTRÓNICO | L28: =IFERROR(WORKDAY(C28,R28,DiasNOLaborables),"") -> 44043 | M28: =+IF(C28="","",IF(I28="","SIN RESPUESTA",(IF(I28<=L28,"A TIEMPO","FUERA DE TIEMPO")))) -> A TIEMPO | N28: =IF(I28="","",NETWORKDAYS(C28+1,I28,DiasNOLaborables)) -> 11 | R28: 20 | Z28: DIRECCIÓN GENERAL | AE28: 43912
A29: 18 | B29: 20209050055312 | C29: 44015 | D29: MODULO CONTACTENOS | E29: SOLICITUD DE INFORMACIÓN Y DOCUMENTOS | F29: SOLICITUD DE INFORMACIÓN HIDROMETEOROLÓGICA | G29: NO | H29: GRUPO DE SERVICIO AL CIUDADANO | I29: 44030 | J29: CORREO ELECTRÓNICO | L29: =IFERROR(WORKDAY(C29,R29,DiasNOLaborables),"") -> 44046 | M29: =+IF(C29="","",IF(I29="","SIN RESPUESTA",(IF(I29<=L29,"A TIEMPO","FUERA DE TIEMPO")))) -> A TIEMPO | N29: =IF(I29="","",NETWORKDAYS(C29+1,I29,DiasNOLaborables)) -> 10 | R29: 20 | Z29: GRUPO DE ADMINISTRACIÓN Y DESARROLLO DEL TALENTO HUMANO | AE29: 43913
A30: 19 | B30: 20209050055342 | C30: 44015 | D30: MODULO CONTACTENOS | E30: SOLICITUD DE INFORMACIÓN Y DOCUMENTOS | F30: SOLICITUD DE INFORMACIÓN HIDROMETEOROLÓGICA | G30: NO | H30: GRUPO DE SERVICIO AL CIUDADANO | I30: 44030 | J30: CORREO ELECTRÓNICO | L30: =IFERROR(WORKDAY(C30,R30,DiasNOLaborables),"") -> 44046 | M30: =+IF(C30="","",IF(I30="","SIN RESPUESTA",(IF(I30<=L30,"A TIEMPO","FUERA DE TIEMPO")))) -> A TIEMPO | N30: =IF(I30="","",NETWORKDAYS(C30+1,I30,DiasNOLaborables)) -> 10 | R30: 20 | Z30: GRUPO DE COMUNICACIONES | AE30: 43918
A31: 20 | B31: 20209050055362 | C31: 44015 | D31: MODULO CONTACTENOS | E31: SOLICITUD DE INFORMACIÓN Y DOCUMENTOS | F31: SOLICITUD DE INFORMACIÓN HIDROMETEOROLÓGICA | G31: NO | H31: GRUPO DE SERVICIO AL CIUDADANO | I31: 44030 | J31: CORREO ELECTRÓNICO | L31: =IFERROR(WORKDAY(C31,R31,DiasNOLaborables),"") -> 44046 | M31: =+IF(C31="","",IF(I31="","SIN RESPUESTA",(IF(I31<=L31,"A TIEMPO","FUERA DE TIEMPO")))) -> A TIEMPO | N31: =IF(I31="","",NETWORKDAYS(C31+1,I31,DiasNOLaborables)) -> 10 | R31: 20 | Z31: GRUPO DE CONTABILIDAD | AE31: 43919
A32: 21 | B32: 20209050055382 | C32: 44016 | D32: MODULO CONTACTENOS | E32: SOLICITUD DE INFORMACIÓN Y DOCUMENTOS | F32: SOLICITUD DE INFORMACIÓN HIDROMETEOROLÓGICA | G32: NO | H32: GRUPO DE SERVICIO AL CIUDADANO | I32: 44030 | J32: CORREO ELECTRÓNICO | L32: =IFERROR(WORKDAY(C32,R32,DiasNOLaborables),"") -> 44046 | M32: =+IF(C32="","",IF(I32="","SIN RESPUESTA",(IF(I32<=L32,"A TIEMPO","FUERA DE TIEMPO")))) -> A TIEMPO | N32: =IF(I32="","",NETWORKDAYS(C32+1,I32,DiasNOLaborables)) -> 10 | R32: 20 | Z32: GRUPO DE CONTROL DISCIPLINARIO INTERNO | AE32: 43925
A33: 22 | B33: 20209050055392 | C33: 44016 | D33: MODULO CONTACTENOS | E33: SOLICITUD DE INFORMACIÓN Y DOCUMENTOS | F33: SOLICITUD DE INFORMACIÓN HIDROMETEOROLÓGICA | G33: NO | H33: GRUPO DE SERVICIO AL CIUDADANO | I33: 44030 | J33: CORREO ELECTRÓNICO | L33: =IFERROR(WORKDAY(C33,R33,DiasNOLaborables),"") -> 44046 | M33: =+IF(C33="","",IF(I33="","SIN RESPUESTA",(IF(I33<=L33,"A TIEMPO","FUERA DE TIEMPO")))) -> A TIEMPO | N33: =IF(I33="","",NETWORKDAYS(C33+1,I33,DiasNOLaborables)) -> 10 | R33: 20 | Z33: GRUPO DE GESTIÓN DOCUMENTAL Y CENTRO DE DOCUMENTACIÓN | AE33: 43926
A34: 23 | B34: 20209050055662 | C34: 44018 | D34: MODULO CONTACTENOS | E34: SOLICITUD DE INFORMACIÓN Y DOCUMENTOS | F34: SOLICITUD DE INFORMACIÓN HIDROMETEOROLÓGICA | G34: NO | H34: GRUPO DE SERVICIO AL CIUDADANO | I34: 44030 | J34: CORREO ELECTRÓNICO | L34: =IFERROR(WORKDAY(C34,R34,DiasNOLaborables),"") -> 44047 | M34: =+IF(C34="","",IF(I34="","SIN RESPUESTA",(IF(I34<=L34,"A TIEMPO","FUERA DE TIEMPO")))) -> A TIEMPO | N34: =IF(I34="","",NETWORKDAYS(C34+1,I34,DiasNOLaborables)) -> 9 | R34: 20 | Z34: GRUPO DE PRESUPUESTO | AE34: 43930
A35: 24 | B35: 20209050055712 | C35: 44018 | D35: MODULO CONTACTENOS | E35: SOLICITUD DE INFORMACIÓN Y DOCUMENTOS | F35: SOLICITUD DE INFORMACIÓN HIDROMETEOROLÓGICA | G35: NO | H35: GRUPO DE SERVICIO AL CIUDADANO | I35: 44030 | J35: CORREO ELECTRÓNICO | L35: =IFERROR(WORKDAY(C35,R35,DiasNOLaborables),"") -> 44047 | M35: =+IF(C35="","",IF(I35="","SIN RESPUESTA",(IF(I35<=L35,"A TIEMPO","FUERA DE TIEMPO")))) -> A TIEMPO | N35: =IF(I35="","",NETWORKDAYS(C35+1,I35,DiasNOLaborables)) -> 9 | R35: 20 | Z35: GRUPO DE SERVICIO AL CIUDADANO | AE35: 43931
A36: 25 | B36: 20209050055722 | C36: 44018 | D36: MODULO CONTACTENOS | E36: SOLICITUD DE INFORMACIÓN Y DOCUMENTOS | F36: SOLICITUD DE INFORMACIÓN HIDROMETEOROLÓGICA | G36: NO | H36: GRUPO DE SERVICIO AL CIUDADANO | I36: 44030 | J36: CORREO ELECTRÓNICO | L36: =IFERROR(WORKDAY(C36,R36,DiasNOLaborables),"") -> 44047 | M36: =+IF(C36="","",IF(I36="","SIN RESPUESTA",(IF(I36<=L36,"A TIEMPO","FUERA DE TIEMPO")))) -> A TIEMPO | N36: =IF(I36="","",NETWORKDAYS(C36+1,I36,DiasNOLaborables)) -> 9 | O36: =IF(NETWORKDAYS(L36+1,I36,DiasNOLaborables)<=0,"",NETWORKDAYS(L36+1,I36,DiasNOLaborables)) ->  | R36: 20 | Z36: GRUPO DE SERVICIOS ADMINISTRATIVOS | AE36: 43932
A37: 26 | B37: 20209050055752 | C37: 44018 | D37: MODULO CONTACTENOS | E37: SOLICITUD DE INFORMACIÓN Y DOCUMENTOS | F37: SOLICITUD DE INFORMACIÓN HIDROMETEOROLÓGICA | G37: NO | H37: GRUPO DE SERVICIO AL CIUDADANO | I37: 44030 | J37: CORREO ELECTRÓNICO | L37: =IFERROR(WORKDAY(C37,R37,DiasNOLaborables),"") -> 44047 | M37: =+IF(C37="","",IF(I37="","SIN RESPUESTA",(IF(I37<=L37,"A TIEMPO","FUERA DE TIEMPO")))) -> A TIEMPO | N37: =IF(I37="","",NETWORKDAYS(C37+1,I37,DiasNOLaborables)) -> 9 | R37: =IFERROR(VLOOKUP(E37,$Z$50:$AA$63,2),"") -> 20 | Z37: GRUPO DE TESORERÍA | AE37: 43933
A38: 27 | B38: 20209050055842 | C38: 44018 | D38: MODULO CONTACTENOS | E38: SOLICITUD DE INFORMACIÓN Y DOCUMENTOS | F38: SOLICITUD DE INFORMACIÓN HIDROMETEOROLÓGICA | G38: NO | H38: GRUPO DE SERVICIO AL CIUDADANO | I38: 44030 | J38: CORREO ELECTRÓNICO | L38: =IFERROR(WORKDAY(C38,R38,DiasNOLaborables),"") -> 44047 | M38: =+IF(C38="","",IF(I38="","SIN RESPUESTA",(IF(I38<=L38,"A TIEMPO","FUERA DE TIEMPO")))) -> A TIEMPO | N38: =IF(I38="","",NETWORKDAYS(C38+1,I38,DiasNOLaborables)) -> 9 | R38: 20 | Z38: OFICINA ASESORA DE PLANEACIÓN | AE38: 43939
A39: 28 | B39: 20209050055862 | C39: 44018 | D39: MODULO CONTACTENOS | E39: SOLICITUD DE INFORMACIÓN Y DOCUMENTOS | F39: SOLICITUD DE INFORMACIÓN HIDROMETEOROLÓGICA | G39: NO | H39: GRUPO DE SERVICIO AL CIUDADANO | I39: 44030 | J39: CORREO ELECTRÓNICO | L39: =IFERROR(WORKDAY(C39,R39,DiasNOLaborables),"") -> 44047 | M39: =+IF(C39="","",IF(I39="","SIN RESPUESTA",(IF(I39<=L39,"A TIEMPO","FUERA DE TIEMPO")))) -> A TIEMPO | N39: =IF(I39="","",NETWORKDAYS(C39+1,I39,DiasNOLaborables)) -> 9 | R39: 20 | Z39: OFICINA ASESORA JURÍDICA | AE39: 43940
A40: 29 | B40: 20209050055882 | C40: 44018 | D40: MODULO CONTACTENOS | E40: SOLICITUD DE INFORMACIÓN Y DOCUMENTOS | F40: SOLICITUD DE INFORMACIÓN HIDROMETEOROLÓGICA | G40: NO | H40: GRUPO DE SERVICIO AL CIUDADANO | I40: 44030 | J40: CORREO ELECTRÓNICO | L40: =IFERROR(WORKDAY(C40,R40,DiasNOLaborables),"") -> 44047 | M40: =+IF(C40="","",IF(I40="","SIN RESPUESTA",(IF(I40<=L40,"A TIEMPO","FUERA DE TIEMPO")))) -> A TIEMPO | N40: =IF(I40="","",NETWORKDAYS(C40+1,I40,DiasNOLaborables)) -> 9 | R40: 20 | Z40: OFICINA DE CONTROL INTERNO | AE40: 43946
A41: 30 | B41: 20209050055912 | C41: 44018 | D41: MODULO CONTACTENOS | E41: SOLICITUD DE INFORMACIÓN Y DOCUMENTOS | F41: SOLICITUD DE INFORMACIÓN HIDROMETEOROLÓGICA | G41: NO | H41: GRUPO DE SERVICIO AL CIUDADANO | I41: 44030 | J41: CORREO ELECTRÓNICO | L41: =IFERROR(WORKDAY(C41,R41,DiasNOLaborables),"") -> 44047 | M41: =+IF(C41="","",IF(I41="","SIN RESPUESTA",(IF(I41<=L41,"A TIEMPO","FUERA DE TIEMPO")))) -> A TIEMPO | N41: =IF(I41="","",NETWORKDAYS(C41+1,I41,DiasNOLaborables)) -> 9 | O41: =IF(NETWORKDAYS(L41+1,I41,DiasNOLaborables)<=0,"",NETWORKDAYS(L41+1,I41,DiasNOLaborables)) ->  | R41: 20 | Z41: OFICINA DE INFORMÁTICA | AE41: 43947
A42: 31 | B42: 20209050055952 | C42: 44018 | D42: MODULO CONTACTENOS | E42: SOLICITUD DE INFORMACIÓN Y DOCUMENTOS | F42: SOLICITUD DE INFORMACIÓN HIDROMETEOROLÓGICA | G42: NO | H42: GRUPO DE SERVICIO AL CIUDADANO | I42: 44030 | J42: CORREO ELECTRÓNICO | L42: =IFERROR(WORKDAY(C42,R42,DiasNOLaborables),"") -> 44047 | M42: =+IF(C42="","",IF(I42="","SIN RESPUESTA",(IF(I42<=L42,"A TIEMPO","FUERA DE TIEMPO")))) -> A TIEMPO | N42: =IF(I42="","",NETWORKDAYS(C42+1,I42,DiasNOLaborables)) -> 9 | R42: 20 | Z42: OFICINA DEL SERVICIO DE PRONÓSTICOS Y ALERTAS | AE42: 43952
A43: 32 | B43: 20209050055992 | C43: 44018 | D43: MODULO CONTACTENOS | E43: SOLICITUD DE INFORMACIÓN Y DOCUMENTOS | F43: SOLICITUD DE INFORMACIÓN HIDROMETEOROLÓGICA | G43: NO | H43: GRUPO DE SERVICIO AL CIUDADANO | I43: 44030 | J43: CORREO ELECTRÓNICO | L43: =IFERROR(WORKDAY(C43,R43,DiasNOLaborables),"") -> 44047 | M43: =+IF(C43="","",IF(I43="","SIN RESPUESTA",(IF(I43<=L43,"A TIEMPO","FUERA DE TIEMPO")))) -> A TIEMPO | N43: =IF(I43="","",NETWORKDAYS(C43+1,I43,DiasNOLaborables)) -> 9 | R43: 20 | Z43: SECRETARÍA GENERAL | AE43: 43953
A44: 33 | B44: 20209050056412 | C44: 44020 | D44: MODULO CONTACTENOS | E44: SOLICITUD DE INFORMACIÓN Y DOCUMENTOS | F44: SOLICITUD DE INFORMACIÓN HIDROMETEOROLÓGICA | G44: NO | H44: GRUPO DE SERVICIO AL CIUDADANO | I44: 44030 | J44: CORREO ELECTRÓNICO | L44: =IFERROR(WORKDAY(C44,R44,DiasNOLaborables),"") -> 44049 | M44: =+IF(C44="","",IF(I44="","SIN RESPUESTA",(IF(I44<=L44,"A TIEMPO","FUERA DE TIEMPO")))) -> A TIEMPO | N44: =IF(I44="","",NETWORKDAYS(C44+1,I44,DiasNOLaborables)) -> 7 | R44: 20 | Z44: SUBDIRECCIÓN DE ECOSISTEMAS E INFORMACIÓN AMBIENTAL | AE44: 43954
A45: 34 | B45: 20209050056432 | C45: 44020 | D45: MODULO CONTACTENOS | E45: SOLICITUD DE INFORMACIÓN Y DOCUMENTOS | F45: SOLICITUD DE INFORMACIÓN HIDROMETEOROLÓGICA | G45: NO | H45: GRUPO DE SERVICIO AL CIUDADANO | I45: 44031 | J45: CORREO ELECTRÓNICO | L45: =IFERROR(WORKDAY(C45,R45,DiasNOLaborables),"") -> 44049 | M45: =+IF(C45="","",IF(I45="","SIN RESPUESTA",(IF(I45<=L45,"A TIEMPO","FUERA DE TIEMPO")))) -> A TIEMPO | N45: =IF(I45="","",NETWORKDAYS(C45+1,I45,DiasNOLaborables)) -> 7 | R45: 20 | Z45: SUBDIRECCIÓN DE ESTUDIOS AMBIENTALES | AE45: 43960
A46: 35 | B46: 20209050056442 | C46: 44020 | D46: MODULO CONTACTENOS | E46: SOLICITUD DE INFORMACIÓN Y DOCUMENTOS | F46: SOLICITUD DE INFORMACIÓN HIDROMETEOROLÓGICA | G46: NO | H46: GRUPO DE SERVICIO AL CIUDADANO | I46: 44031 | J46: CORREO ELECTRÓNICO | L46: =IFERROR(WORKDAY(C46,R46,DiasNOLaborables),"") -> 44049 | M46: =+IF(C46="","",IF(I46="","SIN RESPUESTA",(IF(I46<=L46,"A TIEMPO","FUERA DE TIEMPO")))) -> A TIEMPO | N46: =IF(I46="","",NETWORKDAYS(C46+1,I46,DiasNOLaborables)) -> 7 | R46: 20 | Z46: SUBDIRECCIÓN DE HIDROLOGÍA | AE46: 43961
A47: 36 | B47: 20209050056832 | C47: 44021 | D47: MODULO CONTACTENOS | E47: SOLICITUD DE INFORMACIÓN Y DOCUMENTOS | F47: SOLICITUD DE INFORMACIÓN HIDROMETEOROLÓGICA | G47: NO | H47: GRUPO DE SERVICIO AL CIUDADANO | I47: 44031 | J47: CORREO ELECTRÓNICO | L47: =IFERROR(WORKDAY(C47,R47,DiasNOLaborables),"") -> 44050 | M47: =+IF(C47="","",IF(I47="","SIN RESPUESTA",(IF(I47<=L47,"A TIEMPO","FUERA DE TIEMPO")))) -> A TIEMPO | N47: =IF(I47="","",NETWORKDAYS(C47+1,I47,DiasNOLaborables)) -> 6 | R47: 20 | Z47: SUBDIRECCIÓN DE METEOROLOGÍA | AE47: 43967
A48: 37 | B48: 20209050056862 | C48: 44021 | D48: MODULO CONTACTENOS | E48: SOLICITUD DE INFORMACIÓN Y DOCUMENTOS | F48: SOLICITUD DE INFORMACIÓN HIDROMETEOROLÓGICA | G48: NO | H48: GRUPO DE SERVICIO AL CIUDADANO | I48: 44031 | J48: CORREO ELECTRÓNICO | L48: =IFERROR(WORKDAY(C48,R48,DiasNOLaborables),"") -> 44050 | M48: =+IF(C48="","",IF(I48="","SIN RESPUESTA",(IF(I48<=L48,"A TIEMPO","FUERA DE TIEMPO")))) -> A TIEMPO | N48: =IF(I48="","",NETWORKDAYS(C48+1,I48,DiasNOLaborables)) -> 6 | R48: 20 | AE48: 43968
A49: 38 | B49: 20209050056872 | C49: 44021 | D49: MODULO CONTACTENOS | E49: SOLICITUD DE INFORMACIÓN Y DOCUMENTOS | F49: SOLICITUD DE INFORMACIÓN HIDROMETEOROLÓGICA | G49: NO | H49: GRUPO DE SERVICIO AL CIUDADANO | I49: 44031 | J49: CORREO ELECTRÓNICO | L49: =IFERROR(WORKDAY(C49,R49,DiasNOLaborables),"") -> 44050 | M49: =+IF(C49="","",IF(I49="","SIN RESPUESTA",(IF(I49<=L49,"A TIEMPO","FUERA DE TIEMPO")))) -> A TIEMPO | N49: =IF(I49="","",NETWORKDAYS(C49+1,I49,DiasNOLaborables)) -> 6 | R49: 20 | Z49: TIPO DE REQUERIMIENTO | AA49: Término | AE49: 43974
A50: 39 | B50: 20209050057492 | C50: 44022 | D50: MODULO CONTACTENOS | E50: SOLICITUD DE INFORMACIÓN Y DOCUMENTOS | F50: SOLICITUD DE INFORMACIÓN HIDROMETEOROLÓGICA | G50: NO | H50: GRUPO DE SERVICIO AL CIUDADANO | I50: 44031 | J50: CORREO ELECTRÓNICO | L50: =IFERROR(WORKDAY(C50,R50,DiasNOLaborables),"") -> 44053 | M50: =+IF(C50="","",IF(I50="","SIN RESPUESTA",(IF(I50<=L50,"A TIEMPO","FUERA DE TIEMPO")))) -> A TIEMPO | N50: =IF(I50="","",NETWORKDAYS(C50+1,I50,DiasNOLaborables)) -> 5 | R50: 20 | Z50: AGRADECIMIENTO/FELICITACION | AA50: 15 | AE50: 43975
A51: 40 | B51: 20209050057502 | C51: 44022 | D51: MODULO CONTACTENOS | E51: SOLICITUD DE INFORMACIÓN Y DOCUMENTOS | F51: SOLICITUD DE INFORMACIÓN HIDROMETEOROLÓGICA | G51: NO | H51: GRUPO DE SERVICIO AL CIUDADANO | I51: 44031 | J51: CORREO ELECTRÓNICO | L51: =IFERROR(WORKDAY(C51,R51,DiasNOLaborables),"") -> 44053 | M51: =+IF(C51="","",IF(I51="","SIN RESPUESTA",(IF(I51<=L51,"A TIEMPO","FUERA DE TIEMPO")))) -> A TIEMPO | N51: =IF(I51="","",NETWORKDAYS(C51+1,I51,DiasNOLaborables)) -> 5 | R51: 20 | Z51: CERTIFICACIONES DE TIEMPO, CLIMA Y EVENTOS HIDROLÓGICOS | AA51: 30 | AE51: 43976
A52: 41 | B52: 20209050057512 | C52: 44022 | D52: MODULO CONTACTENOS | E52: SOLICITUD DE INFORMACIÓN Y DOCUMENTOS | F52: SOLICITUD DE INFORMACIÓN HIDROMETEOROLÓGICA | G52: NO | H52: GRUPO DE SERVICIO AL CIUDADANO | I52: 44031 | J52: CORREO ELECTRÓNICO | L52: =IFERROR(WORKDAY(C52,R52,DiasNOLaborables),"") -> 44053 | M52: =+IF(C52="","",IF(I52="","SIN RESPUESTA",(IF(I52<=L52,"A TIEMPO","FUERA DE TIEMPO")))) -> A TIEMPO | N52: =IF(I52="","",NETWORKDAYS(C52+1,I52,DiasNOLaborables)) -> 5 | R52: 20 | Z52: CONSULTA | AA52: 35 | AE52: 43981
A53: 42 | B53: 20209050057522 | C53: 44022 | D53: MODULO CONTACTENOS | E53: SOLICITUD DE INFORMACIÓN Y DOCUMENTOS | F53: SOLICITUD DE INFORMACIÓN HIDROMETEOROLÓGICA | G53: NO | H53: GRUPO DE SERVICIO AL CIUDADANO | I53: 44031 | J53: CORREO ELECTRÓNICO | L53: =IFERROR(WORKDAY(C53,R53,DiasNOLaborables),"") -> 44053 | M53: =+IF(C53="","",IF(I53="","SIN RESPUESTA",(IF(I53<=L53,"A TIEMPO","FUERA DE TIEMPO")))) -> A TIEMPO | N53: =IF(I53="","",NETWORKDAYS(C53+1,I53,DiasNOLaborables)) -> 5 | R53: 20 | Z53: DENUNCIA | AA53: 15 | AE53: 43982
A54: 43 | B54: 20209050057532 | C54: 44022 | D54: MODULO CONTACTENOS | E54: SOLICITUD DE INFORMACIÓN Y DOCUMENTOS | F54: SOLICITUD DE INFORMACIÓN HIDROMETEOROLÓGICA | G54: NO | H54: GRUPO DE SERVICIO AL CIUDADANO | I54: 44031 | J54: CORREO ELECTRÓNICO | L54: =IFERROR(WORKDAY(C54,R54,DiasNOLaborables),"") -> 44053 | M54: =+IF(C54="","",IF(I54="","SIN RESPUESTA",(IF(I54<=L54,"A TIEMPO","FUERA DE TIEMPO")))) -> A TIEMPO | N54: =IF(I54="","",NETWORKDAYS(C54+1,I54,DiasNOLaborables)) -> 5 | R54: 20 | Z54: PETICIÓN | AA54: 30 | AE54: 43988
A55: 44 | B55: 20209050057542 | C55: 44022 | D55: MODULO CONTACTENOS | E55: SOLICITUD DE INFORMACIÓN Y DOCUMENTOS | F55: SOLICITUD DE INFORMACIÓN HIDROMETEOROLÓGICA | G55: NO | H55: GRUPO DE SERVICIO AL CIUDADANO | I55: 44031 | J55: CORREO ELECTRÓNICO | L55: =IFERROR(WORKDAY(C55,R55,DiasNOLaborables),"") -> 44053 | M55: =+IF(C55="","",IF(I55="","SIN RESPUESTA",(IF(I55<=L55,"A TIEMPO","FUERA DE TIEMPO")))) -> A TIEMPO | N55: =IF(I55="","",NETWORKDAYS(C55+1,I55,DiasNOLaborables)) -> 5 | R55: 20 | Z55: PETICIÓN ENTRE AUTORIDADES | AA55: 10 | AE55: 43989
A56: 45 | B56: 20209050057552 | C56: 44022 | D56: MODULO CONTACTENOS | E56: SOLICITUD DE INFORMACIÓN Y DOCUMENTOS | F56: SOLICITUD DE INFORMACIÓN HIDROMETEOROLÓGICA | G56: NO | H56: GRUPO DE SERVICIO AL CIUDADANO | I56: 44031 | J56: CORREO ELECTRÓNICO | L56: =IFERROR(WORKDAY(C56,R56,DiasNOLaborables),"") -> 44053 | M56: =+IF(C56="","",IF(I56="","SIN RESPUESTA",(IF(I56<=L56,"A TIEMPO","FUERA DE TIEMPO")))) -> A TIEMPO | N56: =IF(I56="","",NETWORKDAYS(C56+1,I56,DiasNOLaborables)) -> 5 | R56: 20 | Z56: PETICION VERBAL | AA56: 15 | AE56: 43995
A57: 46 | B57: 20209050057562 | C57: 44022 | D57: MODULO CONTACTENOS | E57: SOLICITUD DE INFORMACIÓN Y DOCUMENTOS | F57: SOLICITUD DE INFORMACIÓN HIDROMETEOROLÓGICA | G57: NO | H57: GRUPO DE SERVICIO AL CIUDADANO | I57: 44031 | J57: CORREO ELECTRÓNICO | L57: =IFERROR(WORKDAY(C57,R57,DiasNOLaborables),"") -> 44053 | M57: =+IF(C57="","",IF(I57="","SIN RESPUESTA",(IF(I57<=L57,"A TIEMPO","FUERA DE TIEMPO")))) -> A TIEMPO | N57: =IF(I57="","",NETWORKDAYS(C57+1,I57,DiasNOLaborables)) -> 5 | R57: 20 | Z57: QUEJA | AA57: 15 | AE57: 43996
A58: 47 | B58: 20209050057862 | C58: 44025 | D58: MODULO CONTACTENOS | E58: SOLICITUD DE INFORMACIÓN Y DOCUMENTOS | F58: SOLICITUD DE INFORMACIÓN HIDROMETEOROLÓGICA | G58: NO | H58: GRUPO DE SERVICIO AL CIUDADANO | I58: 44031 | J58: CORREO ELECTRÓNICO | L58: =IFERROR(WORKDAY(C58,R58,DiasNOLaborables),"") -> 44054 | M58: =+IF(C58="","",IF(I58="","SIN RESPUESTA",(IF(I58<=L58,"A TIEMPO","FUERA DE TIEMPO")))) -> A TIEMPO | N58: =IF(I58="","",NETWORKDAYS(C58+1,I58,DiasNOLaborables)) -> 4 | R58: 20 | Z58: RECLAMO | AA58: 15 | AE58: 43997
A59: 48 | B59: 20209050057872 | C59: 44025 | D59: MODULO CONTACTENOS | E59: SOLICITUD DE INFORMACIÓN Y DOCUMENTOS | F59: SOLICITUD DE INFORMACIÓN HIDROMETEOROLÓGICA | G59: NO | H59: GRUPO DE SERVICIO AL CIUDADANO | I59: 44031 | J59: CORREO ELECTRÓNICO | L59: =IFERROR(WORKDAY(C59,R59,DiasNOLaborables),"") -> 44054 | M59: =+IF(C59="","",IF(I59="","SIN RESPUESTA",(IF(I59<=L59,"A TIEMPO","FUERA DE TIEMPO")))) -> A TIEMPO | N59: =IF(I59="","",NETWORKDAYS(C59+1,I59,DiasNOLaborables)) -> 4 | R59: 20 | Z59: REMISIÓN POR COMPETENCIA | AA59: 5 | AE59: 44002
A60: 49 | B60: 20209050058412 | C60: 44026 | D60: MODULO CONTACTENOS | E60: SOLICITUD DE INFORMACIÓN Y DOCUMENTOS | F60: SOLICITUD DE INFORMACIÓN HIDROMETEOROLÓGICA | G60: NO | H60: GRUPO DE SERVICIO AL CIUDADANO | I60: 44031 | J60: CORREO ELECTRÓNICO | L60: =IFERROR(WORKDAY(C60,R60,DiasNOLaborables),"") -> 44055 | M60: =+IF(C60="","",IF(I60="","SIN RESPUESTA",(IF(I60<=L60,"A TIEMPO","FUERA DE TIEMPO")))) -> A TIEMPO | N60: =IF(I60="","",NETWORKDAYS(C60+1,I60,DiasNOLaborables)) -> 3 | R60: 20 | Z60: SOLICITUD CONGRESITAS | AA60: 5 | AE60: 44003
A61: 50 | B61: 20209050058422 | C61: 44026 | D61: MODULO CONTACTENOS | E61: SOLICITUD DE INFORMACIÓN Y DOCUMENTOS | F61: SOLICITUD DE INFORMACIÓN HIDROMETEOROLÓGICA | G61: NO | H61: GRUPO DE SERVICIO AL CIUDADANO | I61: 44031 | J61: CORREO ELECTRÓNICO | L61: =IFERROR(WORKDAY(C61,R61,DiasNOLaborables),"") -> 44055 | M61: =+IF(C61="","",IF(I61="","SIN RESPUESTA",(IF(I61<=L61,"A TIEMPO","FUERA DE TIEMPO")))) -> A TIEMPO | N61: =IF(I61="","",NETWORKDAYS(C61+1,I61,DiasNOLaborables)) -> 3 | R61: 20 | Z61: SOLICITUD DE INFORMACIÓN Y DOCUMENTOS | AA61: 20 | AE61: 44004
A62: 51 | B62: 20209050058482 | C62: 44027 | D62: MODULO CONTACTENOS | E62: SOLICITUD DE INFORMACIÓN Y DOCUMENTOS | F62: SOLICITUD DE INFORMACIÓN HIDROMETEOROLÓGICA | G62: NO | H62: GRUPO DE SERVICIO AL CIUDADANO | I62: 44031 | J62: CORREO ELECTRÓNICO | L62: =IFERROR(WORKDAY(C62,R62,DiasNOLaborables),"") -> 44056 | M62: =+IF(C62="","",IF(I62="","SIN RESPUESTA",(IF(I62<=L62,"A TIEMPO","FUERA DE TIEMPO")))) -> A TIEMPO | N62: =IF(I62="","",NETWORKDAYS(C62+1,I62,DiasNOLaborables)) -> 2 | R62: 20 | Z62: SOLICITUD JUDICIAL | AA62: 5 | AE62: 44009
A63: 52 | B63: 20209050058552 | C63: 44027 | D63: MODULO CONTACTENOS | E63: SOLICITUD DE INFORMACIÓN Y DOCUMENTOS | F63: SOLICITUD DE INFORMACIÓN HIDROMETEOROLÓGICA | G63: NO | H63: GRUPO DE SERVICIO AL CIUDADANO | I63: 44031 | J63: CORREO ELECTRÓNICO | L63: =IFERROR(WORKDAY(C63,R63,DiasNOLaborables),"") -> 44056 | M63: =+IF(C63="","",IF(I63="","SIN RESPUESTA",(IF(I63<=L63,"A TIEMPO","FUERA DE TIEMPO")))) -> A TIEMPO | N63: =IF(I63="","",NETWORKDAYS(C63+1,I63,DiasNOLaborables)) -> 2 | R63: 20 | Z63: SUGERENCIA | AA63: 15 | AE63: 44010
A64: 53 | B64: 20209050058572 | C64: 44027 | D64: MODULO CONTACTENOS | E64: SOLICITUD DE INFORMACIÓN Y DOCUMENTOS | F64: SOLICITUD DE INFORMACIÓN HIDROMETEOROLÓGICA | G64: NO | H64: GRUPO DE SERVICIO AL CIUDADANO | I64: 44031 | J64: CORREO ELECTRÓNICO | L64: =IFERROR(WORKDAY(C64,R64,DiasNOLaborables),"") -> 44056 | M64: =+IF(C64="","",IF(I64="","SIN RESPUESTA",(IF(I64<=L64,"A TIEMPO","FUERA DE TIEMPO")))) -> A TIEMPO | N64: =IF(I64="","",NETWORKDAYS(C64+1,I64,DiasNOLaborables)) -> 2 | R64: 20 | AE64: 44011
A65: 54 | B65: 20209050058682 | C65: 44027 | D65: MODULO CONTACTENOS | E65: SOLICITUD DE INFORMACIÓN Y DOCUMENTOS | F65: SOLICITUD DE INFORMACIÓN HIDROMETEOROLÓGICA | G65: NO | H65: GRUPO DE SERVICIO AL CIUDADANO | I65: 44031 | J65: CORREO ELECTRÓNICO | L65: =IFERROR(WORKDAY(C65,R65,DiasNOLaborables),"") -> 44056 | M65: =+IF(C65="","",IF(I65="","SIN RESPUESTA",(IF(I65<=L65,"A TIEMPO","FUERA DE TIEMPO")))) -> A TIEMPO | N65: =IF(I65="","",NETWORKDAYS(C65+1,I65,DiasNOLaborables)) -> 2 | R65: 20 | Z65: PRODUCTO O SERVICIO | AE65: 44016
A66: 55 | B66: 20200706205736 | C66: 44018 | D66: WEB (MÓDULO DE SOLICITUD DE INFORMACIÓN HIDROMETEOROLÓGICA) | E66: SOLICITUD DE INFORMACIÓN Y DOCUMENTOS | F66: SOLICITUD DE INFORMACIÓN HIDROMETEOROLÓGICA | G66: NO | H66: GRUPO DE SERVICIO AL CIUDADANO | I66: 44031 | J66: CORREO ELECTRÓNICO | L66: =IFERROR(WORKDAY(C66,R66,DiasNOLaborables),"") -> 44047 | M66: =+IF(C66="","",IF(I66="","SIN RESPUESTA",(IF(I66<=L66,"A TIEMPO","FUERA DE TIEMPO")))) -> A TIEMPO | N66: =IF(I66="","",NETWORKDAYS(C66+1,I66,DiasNOLaborables)) -> 9 | R66: 20 | Z66: ACREDITACIÓN DE LABORATORIOS | AE66: 44017
A67: 56 | B67: 20200706205533 | C67: 44018 | D67: WEB (MÓDULO DE SOLICITUD DE INFORMACIÓN HIDROMETEOROLÓGICA) | E67: SOLICITUD DE INFORMACIÓN Y DOCUMENTOS | F67: SOLICITUD DE INFORMACIÓN HIDROMETEOROLÓGICA | G67: NO | H67: GRUPO DE SERVICIO AL CIUDADANO | I67: 44031 | J67: CORREO ELECTRÓNICO | L67: =IFERROR(WORKDAY(C67,R67,DiasNOLaborables),"") -> 44047 | M67: =+IF(C67="","",IF(I67="","SIN RESPUESTA",(IF(I67<=L67,"A TIEMPO","FUERA DE TIEMPO")))) -> A TIEMPO | N67: =IF(I67="","",NETWORKDAYS(C67+1,I67,DiasNOLaborables)) -> 9 | R67: 20 | Z67: ADMINISTRATIVA | AE67: 44023
A68: 57 | B68: 20200706204854 | C68: 44018 | D68: WEB (MÓDULO DE SOLICITUD DE INFORMACIÓN HIDROMETEOROLÓGICA) | E68: SOLICITUD DE INFORMACIÓN Y DOCUMENTOS | F68: SOLICITUD DE INFORMACIÓN HIDROMETEOROLÓGICA | G68: NO | H68: GRUPO DE SERVICIO AL CIUDADANO | I68: 44031 | J68: CORREO ELECTRÓNICO | L68: =IFERROR(WORKDAY(C68,R68,DiasNOLaborables),"") -> 44047 | M68: =+IF(C68="","",IF(I68="","SIN RESPUESTA",(IF(I68<=L68,"A TIEMPO","FUERA DE TIEMPO")))) -> A TIEMPO | N68: =IF(I68="","",NETWORKDAYS(C68+1,I68,DiasNOLaborables)) -> 9 | R68: 20 | Z68: AGUAS SUBTERRANEAS | AE68: 44024
A69: 58 | B69: 20200706204536 | C69: 44018 | D69: WEB (MÓDULO DE SOLICITUD DE INFORMACIÓN HIDROMETEOROLÓGICA) | E69: SOLICITUD DE INFORMACIÓN Y DOCUMENTOS | F69: SOLICITUD DE INFORMACIÓN HIDROMETEOROLÓGICA | G69: NO | H69: GRUPO DE SERVICIO AL CIUDADANO | I69: 44031 | J69: CORREO ELECTRÓNICO | L69: =IFERROR(WORKDAY(C69,R69,DiasNOLaborables),"") -> 44047 | M69: =+IF(C69="","",IF(I69="","SIN RESPUESTA",(IF(I69<=L69,"A TIEMPO","FUERA DE TIEMPO")))) -> A TIEMPO | N69: =IF(I69="","",NETWORKDAYS(C69+1,I69,DiasNOLaborables)) -> 9 | R69: 20 | Z69: ASESORÍAS Y CHARLAS | AE69: 44030
A70: 59 | B70: 20200706203516 | C70: 44018 | D70: WEB (MÓDULO DE SOLICITUD DE INFORMACIÓN HIDROMETEOROLÓGICA) | E70: SOLICITUD DE INFORMACIÓN Y DOCUMENTOS | F70: SOLICITUD DE INFORMACIÓN HIDROMETEOROLÓGICA | G70: NO | H70: GRUPO DE SERVICIO AL CIUDADANO | I70: 44031 | J70: CORREO ELECTRÓNICO | L70: =IFERROR(WORKDAY(C70,R70,DiasNOLaborables),"") -> 44047 | M70: =+IF(C70="","",IF(I70="","SIN RESPUESTA",(IF(I70<=L70,"A TIEMPO","FUERA DE TIEMPO")))) -> A TIEMPO | N70: =IF(I70="","",NETWORKDAYS(C70+1,I70,DiasNOLaborables)) -> 9 | R70: 20 | Z70: BOSQUES | AE70: 44031
A71: 60 | B71: 20200706195735 | C71: 44018 | D71: WEB (MÓDULO DE SOLICITUD DE INFORMACIÓN HIDROMETEOROLÓGICA) | E71: SOLICITUD DE INFORMACIÓN Y DOCUMENTOS | F71: SOLICITUD DE INFORMACIÓN HIDROMETEOROLÓGICA | G71: NO | H71: GRUPO DE SERVICIO AL CIUDADANO | I71: 44031 | J71: CORREO ELECTRÓNICO | L71: =IFERROR(WORKDAY(C71,R71,DiasNOLaborables),"") -> 44047 | M71: =+IF(C71="","",IF(I71="","SIN RESPUESTA",(IF(I71<=L71,"A TIEMPO","FUERA DE TIEMPO")))) -> A TIEMPO | N71: =IF(I71="","",NETWORKDAYS(C71+1,I71,DiasNOLaborables)) -> 9 | R71: 20 | Z71: CAMBIO CLIMÁTICO | AE71: 44032
A72: 61 | B72: 20200706194417 | C72: 44018 | D72: WEB (MÓDULO DE SOLICITUD DE INFORMACIÓN HIDROMETEOROLÓGICA) | E72: SOLICITUD DE INFORMACIÓN Y DOCUMENTOS | F72: SOLICITUD DE INFORMACIÓN HIDROMETEOROLÓGICA | G72: NO | H72: GRUPO DE SERVICIO AL CIUDADANO | I72: 44031 | J72: CORREO ELECTRÓNICO | L72: =IFERROR(WORKDAY(C72,R72,DiasNOLaborables),"") -> 44047 | M72: =+IF(C72="","",IF(I72="","SIN RESPUESTA",(IF(I72<=L72,"A TIEMPO","FUERA DE TIEMPO")))) -> A TIEMPO | N72: =IF(I72="","",NETWORKDAYS(C72+1,I72,DiasNOLaborables)) -> 9 | R72: 20 | Z72: CERTIFICACIONES DE TIEMPO Y CLIMA | AE72: 44037
A73: 62 | B73: 20200706182103 | C73: 44018 | D73: WEB (MÓDULO DE SOLICITUD DE INFORMACIÓN HIDROMETEOROLÓGICA) | E73: SOLICITUD DE INFORMACIÓN Y DOCUMENTOS | F73: SOLICITUD DE INFORMACIÓN HIDROMETEOROLÓGICA | G73: NO | H73: GRUPO DE SERVICIO AL CIUDADANO | I73: 44031 | J73: CORREO ELECTRÓNICO | L73: =IFERROR(WORKDAY(C73,R73,DiasNOLaborables),"") -> 44047 | M73: =+IF(C73="","",IF(I73="","SIN RESPUESTA",(IF(I73<=L73,"A TIEMPO","FUERA DE TIEMPO")))) -> A TIEMPO | N73: =IF(I73="","",NETWORKDAYS(C73+1,I73,DiasNOLaborables)) -> 9 | R73: 20 | Z73: CERTIFICACIONES HIDROLOGICAS | AE73: 44038
A74: 63 | B74: 20200706173913 | C74: 44018 | D74: WEB (MÓDULO DE SOLICITUD DE INFORMACIÓN HIDROMETEOROLÓGICA) | E74: SOLICITUD DE INFORMACIÓN Y DOCUMENTOS | F74: SOLICITUD DE INFORMACIÓN HIDROMETEOROLÓGICA | G74: NO | H74: GRUPO DE SERVICIO AL CIUDADANO | I74: 44031 | J74: CORREO ELECTRÓNICO | L74: =IFERROR(WORKDAY(C74,R74,DiasNOLaborables),"") -> 44047 | M74: =+IF(C74="","",IF(I74="","SIN RESPUESTA",(IF(I74<=L74,"A TIEMPO","FUERA DE TIEMPO")))) -> A TIEMPO | N74: =IF(I74="","",NETWORKDAYS(C74+1,I74,DiasNOLaborables)) -> 9 | R74: 20 | Z74: CLIMATOLOGÍA | AE74: 44044
A75: 64 | B75: 20200706173615 | C75: 44018 | D75: WEB (MÓDULO DE SOLICITUD DE INFORMACIÓN HIDROMETEOROLÓGICA) | E75: SOLICITUD DE INFORMACIÓN Y DOCUMENTOS | F75: SOLICITUD DE INFORMACIÓN HIDROMETEOROLÓGICA | G75: NO | H75: GRUPO DE SERVICIO AL CIUDADANO | I75: 44031 | J75: CORREO ELECTRÓNICO | L75: =IFERROR(WORKDAY(C75,R75,DiasNOLaborables),"") -> 44047 | M75: =+IF(C75="","",IF(I75="","SIN RESPUESTA",(IF(I75<=L75,"A TIEMPO","FUERA DE TIEMPO")))) -> A TIEMPO | N75: =IF(I75="","",NETWORKDAYS(C75+1,I75,DiasNOLaborables)) -> 9 | R75: 20 | Z75: ERA | AA75: EVALUACIÓN REGIONAL DEL AGUA | AE75: 44045
A76: 65 | B76: 20200706172952 | C76: 44018 | D76: WEB (MÓDULO DE SOLICITUD DE INFORMACIÓN HIDROMETEOROLÓGICA) | E76: SOLICITUD DE INFORMACIÓN Y DOCUMENTOS | F76: SOLICITUD DE INFORMACIÓN HIDROMETEOROLÓGICA | G76: NO | H76: GRUPO DE SERVICIO AL CIUDADANO | I76: 44031 | J76: CORREO ELECTRÓNICO | L76: =IFERROR(WORKDAY(C76,R76,DiasNOLaborables),"") -> 44047 | M76: =+IF(C76="","",IF(I76="","SIN RESPUESTA",(IF(I76<=L76,"A TIEMPO","FUERA DE TIEMPO")))) -> A TIEMPO | N76: =IF(I76="","",NETWORKDAYS(C76+1,I76,DiasNOLaborables)) -> 9 | R76: 20 | Z76: ESTUDIO NACIONAL DEL AGUA | AE76: 44051
A77: 66 | B77: 20200706164509 | C77: 44018 | D77: WEB (MÓDULO DE SOLICITUD DE INFORMACIÓN HIDROMETEOROLÓGICA) | E77: SOLICITUD DE INFORMACIÓN Y DOCUMENTOS | F77: SOLICITUD DE INFORMACIÓN HIDROMETEOROLÓGICA | G77: NO | H77: GRUPO DE SERVICIO AL CIUDADANO | I77: 44031 | J77: CORREO ELECTRÓNICO | L77: =IFERROR(WORKDAY(C77,R77,DiasNOLaborables),"") -> 44047 | M77: =+IF(C77="","",IF(I77="","SIN RESPUESTA",(IF(I77<=L77,"A TIEMPO","FUERA DE TIEMPO")))) -> A TIEMPO | N77: =IF(I77="","",NETWORKDAYS(C77+1,I77,DiasNOLaborables)) -> 9 | R77: 20 | Z77: INFORMES AMBIENTALES | AE77: 44052
A78: =IF(B77<>"",A77+1,"") -> 67 | B78: 20200706164011 | C78: 44018 | D78: WEB (MÓDULO DE SOLICITUD DE INFORMACIÓN HIDROMETEOROLÓGICA) | E78: SOLICITUD DE INFORMACIÓN Y DOCUMENTOS | F78: SOLICITUD DE INFORMACIÓN HIDROMETEOROLÓGICA | G78: NO | H78: GRUPO DE SERVICIO AL CIUDADANO | I78: 44031 | J78: CORREO ELECTRÓNICO | L78: =IFERROR(WORKDAY(C78,R78,DiasNOLaborables),"") -> 44047 | M78: =+IF(C78="","",IF(I78="","SIN RESPUESTA",(IF(I78<=L78,"A TIEMPO","FUERA DE TIEMPO")))) -> A TIEMPO | N78: =IF(I78="","",NETWORKDAYS(C78+1,I78,DiasNOLaborables)) -> 9 | R78: 20 | Z78: JURIDICO | AE78: 44058
A79: 68 | B79: 20200706160903 | C79: 44018 | D79: WEB (MÓDULO DE SOLICITUD DE INFORMACIÓN HIDROMETEOROLÓGICA) | E79: SOLICITUD DE INFORMACIÓN Y DOCUMENTOS | F79: SOLICITUD DE INFORMACIÓN HIDROMETEOROLÓGICA | G79: NO | H79: GRUPO DE SERVICIO AL CIUDADANO | I79: 44031 | J79: CORREO ELECTRÓNICO | L79: =IFERROR(WORKDAY(C79,R79,DiasNOLaborables),"") -> 44047 | M79: =+IF(C79="","",IF(I79="","SIN RESPUESTA",(IF(I79<=L79,"A TIEMPO","FUERA DE TIEMPO")))) -> A TIEMPO | N79: =IF(I79="","",NETWORKDAYS(C79+1,I79,DiasNOLaborables)) -> 9 | R79: 20 | Z79: LABORATORIO DE CALIDAD AMBIENTAL | AE79: 44059
A80: 69 | B80: 20200706160445 | C80: 44018 | D80: WEB (MÓDULO DE SOLICITUD DE INFORMACIÓN HIDROMETEOROLÓGICA) | E80: SOLICITUD DE INFORMACIÓN Y DOCUMENTOS | F80: SOLICITUD DE INFORMACIÓN HIDROMETEOROLÓGICA | G80: NO | H80: GRUPO DE SERVICIO AL CIUDADANO | I80: 44031 | J80: CORREO ELECTRÓNICO | L80: =IFERROR(WORKDAY(C80,R80,DiasNOLaborables),"") -> 44047 | M80: =+IF(C80="","",IF(I80="","SIN RESPUESTA",(IF(I80<=L80,"A TIEMPO","FUERA DE TIEMPO")))) -> A TIEMPO | N80: =IF(I80="","",NETWORKDAYS(C80+1,I80,DiasNOLaborables)) -> 9 | R80: 20 | Z80: MEDIOS DE COMUNICACIÓN | AE80: 44060
A81: 70 | B81: 20200706154915 | C81: 44018 | D81: WEB (MÓDULO DE SOLICITUD DE INFORMACIÓN HIDROMETEOROLÓGICA) | E81: SOLICITUD DE INFORMACIÓN Y DOCUMENTOS | F81: SOLICITUD DE INFORMACIÓN HIDROMETEOROLÓGICA | G81: NO | H81: GRUPO DE SERVICIO AL CIUDADANO | I81: 44031 | J81: CORREO ELECTRÓNICO | L81: =IFERROR(WORKDAY(C81,R81,DiasNOLaborables),"") -> 44047 | M81: =+IF(C81="","",IF(I81="","SIN RESPUESTA",(IF(I81<=L81,"A TIEMPO","FUERA DE TIEMPO")))) -> A TIEMPO | N81: =IF(I81="","",NETWORKDAYS(C81+1,I81,DiasNOLaborables)) -> 9 | R81: 20 | Z81: METEOROLOGÍA AERONAÚTICA | AE81: 44065
A82: 71 | B82: 20200706154639 | C82: 44018 | D82: WEB (MÓDULO DE SOLICITUD DE INFORMACIÓN HIDROMETEOROLÓGICA) | E82: SOLICITUD DE INFORMACIÓN Y DOCUMENTOS | F82: SOLICITUD DE INFORMACIÓN HIDROMETEOROLÓGICA | G82: NO | H82: GRUPO DE SERVICIO AL CIUDADANO | I82: 44031 | J82: CORREO ELECTRÓNICO | L82: =IFERROR(WORKDAY(C82,R82,DiasNOLaborables),"") -> 44047 | M82: =+IF(C82="","",IF(I82="","SIN RESPUESTA",(IF(I82<=L82,"A TIEMPO","FUERA DE TIEMPO")))) -> A TIEMPO | N82: =IF(I82="","",NETWORKDAYS(C82+1,I82,DiasNOLaborables)) -> 9 | R82: 20 | Z82: MODELACIÓN HIDROLÓGICA | AE82: 44066
A83: 72 | B83: 20200706154341 | C83: 44018 | D83: WEB (MÓDULO DE SOLICITUD DE INFORMACIÓN HIDROMETEOROLÓGICA) | E83: SOLICITUD DE INFORMACIÓN Y DOCUMENTOS | F83: SOLICITUD DE INFORMACIÓN HIDROMETEOROLÓGICA | G83: NO | H83: GRUPO DE SERVICIO AL CIUDADANO | I83: 44031 | J83: CORREO ELECTRÓNICO | L83: =IFERROR(WORKDAY(C83,R83,DiasNOLaborables),"") -> 44047 | M83: =+IF(C83="","",IF(I83="","SIN RESPUESTA",(IF(I83<=L83,"A TIEMPO","FUERA DE TIEMPO")))) -> A TIEMPO | N83: =IF(I83="","",NETWORKDAYS(C83+1,I83,DiasNOLaborables)) -> 9 | R83: 20 | Z83: MODELAMIENTO METEOROLÓGICO | AE83: 44072
A84: 73 | B84: 20200706153809 | C84: 44018 | D84: WEB (MÓDULO DE SOLICITUD DE INFORMACIÓN HIDROMETEOROLÓGICA) | E84: SOLICITUD DE INFORMACIÓN Y DOCUMENTOS | F84: SOLICITUD DE INFORMACIÓN HIDROMETEOROLÓGICA | G84: NO | H84: GRUPO DE SERVICIO AL CIUDADANO | I84: 44031 | J84: CORREO ELECTRÓNICO | L84: =IFERROR(WORKDAY(C84,R84,DiasNOLaborables),"") -> 44047 | M84: =+IF(C84="","",IF(I84="","SIN RESPUESTA",(IF(I84<=L84,"A TIEMPO","FUERA DE TIEMPO")))) -> A TIEMPO | N84: =IF(I84="","",NETWORKDAYS(C84+1,I84,DiasNOLaborables)) -> 9 | R84: 20 | Z84: OPERACIÓN DE REDES | AE84: 44073
A85: 74 | B85: 20200706153547 | C85: 44018 | D85: WEB (MÓDULO DE SOLICITUD DE INFORMACIÓN HIDROMETEOROLÓGICA) | E85: SOLICITUD DE INFORMACIÓN Y DOCUMENTOS | F85: SOLICITUD DE INFORMACIÓN HIDROMETEOROLÓGICA | G85: NO | H85: GRUPO DE SERVICIO AL CIUDADANO | I85: 44031 | J85: CORREO ELECTRÓNICO | L85: =IFERROR(WORKDAY(C85,R85,DiasNOLaborables),"") -> 44047 | M85: =+IF(C85="","",IF(I85="","SIN RESPUESTA",(IF(I85<=L85,"A TIEMPO","FUERA DE TIEMPO")))) -> A TIEMPO | N85: =IF(I85="","",NETWORKDAYS(C85+1,I85,DiasNOLaborables)) -> 9 | R85: 20 | Z85: PRONÓSTICOS Y ALERTAS | AE85: 44079
A86: 75 | B86: 20200706153507 | C86: 44018 | D86: WEB (MÓDULO DE SOLICITUD DE INFORMACIÓN HIDROMETEOROLÓGICA) | E86: SOLICITUD DE INFORMACIÓN Y DOCUMENTOS | F86: SOLICITUD DE INFORMACIÓN HIDROMETEOROLÓGICA | G86: NO | H86: GRUPO DE SERVICIO AL CIUDADANO | I86: 44031 | J86: CORREO ELECTRÓNICO | L86: =IFERROR(WORKDAY(C86,R86,DiasNOLaborables),"") -> 44047 | M86: =+IF(C86="","",IF(I86="","SIN RESPUESTA",(IF(I86<=L86,"A TIEMPO","FUERA DE TIEMPO")))) -> A TIEMPO | N86: =IF(I86="","",NETWORKDAYS(C86+1,I86,DiasNOLaborables)) -> 9 | R86: 20 | Z86: REGISTROS AMBIENTALES | AE86: 44080
A87: 76 | B87: 20200706152000 | C87: 44018 | D87: WEB (MÓDULO DE SOLICITUD DE INFORMACIÓN HIDROMETEOROLÓGICA) | E87: SOLICITUD DE INFORMACIÓN Y DOCUMENTOS | F87: SOLICITUD DE INFORMACIÓN HIDROMETEOROLÓGICA | G87: NO | H87: GRUPO DE SERVICIO AL CIUDADANO | I87: 44031 | J87: CORREO ELECTRÓNICO | L87: =IFERROR(WORKDAY(C87,R87,DiasNOLaborables),"") -> 44047 | M87: =+IF(C87="","",IF(I87="","SIN RESPUESTA",(IF(I87<=L87,"A TIEMPO","FUERA DE TIEMPO")))) -> A TIEMPO | N87: =IF(I87="","",NETWORKDAYS(C87+1,I87,DiasNOLaborables)) -> 9 | R87: 20 | Z87: SEDIMENTOS | AE87: 44086
A88: 77 | B88: 20200706151604 | C88: 44018 | D88: WEB (MÓDULO DE SOLICITUD DE INFORMACIÓN HIDROMETEOROLÓGICA) | E88: SOLICITUD DE INFORMACIÓN Y DOCUMENTOS | F88: SOLICITUD DE INFORMACIÓN HIDROMETEOROLÓGICA | G88: NO | H88: GRUPO DE SERVICIO AL CIUDADANO | I88: 44031 | J88: CORREO ELECTRÓNICO | L88: =IFERROR(WORKDAY(C88,R88,DiasNOLaborables),"") -> 44047 | M88: =+IF(C88="","",IF(I88="","SIN RESPUESTA",(IF(I88<=L88,"A TIEMPO","FUERA DE TIEMPO")))) -> A TIEMPO | N88: =IF(I88="","",NETWORKDAYS(C88+1,I88,DiasNOLaborables)) -> 9 | R88: 20 | Z88: SIA | AA88: SISTEMA DE INFORMACIÓN AMBIENTAL | AE88: 44087
A89: 78 | B89: 20200706150937 | C89: 44018 | D89: WEB (MÓDULO DE SOLICITUD DE INFORMACIÓN HIDROMETEOROLÓGICA) | E89: SOLICITUD DE INFORMACIÓN Y DOCUMENTOS | F89: SOLICITUD DE INFORMACIÓN HIDROMETEOROLÓGICA | G89: NO | H89: GRUPO DE SERVICIO AL CIUDADANO | I89: 44031 | J89: CORREO ELECTRÓNICO | L89: =IFERROR(WORKDAY(C89,R89,DiasNOLaborables),"") -> 44047 | M89: =+IF(C89="","",IF(I89="","SIN RESPUESTA",(IF(I89<=L89,"A TIEMPO","FUERA DE TIEMPO")))) -> A TIEMPO | N89: =IF(I89="","",NETWORKDAYS(C89+1,I89,DiasNOLaborables)) -> 9 | R89: 20 | Z89: SIRH | AA89: SISTEMA DE INFORMACIÓN DEL RECURDO HÍDRICO | AE89: 44093
A90: 79 | B90: 20200706142607 | C90: 44018 | D90: WEB (MÓDULO DE SOLICITUD DE INFORMACIÓN HIDROMETEOROLÓGICA) | E90: SOLICITUD DE INFORMACIÓN Y DOCUMENTOS | F90: SOLICITUD DE INFORMACIÓN HIDROMETEOROLÓGICA | G90: NO | H90: GRUPO DE SERVICIO AL CIUDADANO | I90: 44031 | J90: CORREO ELECTRÓNICO | L90: =IFERROR(WORKDAY(C90,R90,DiasNOLaborables),"") -> 44047 | M90: =+IF(C90="","",IF(I90="","SIN RESPUESTA",(IF(I90<=L90,"A TIEMPO","FUERA DE TIEMPO")))) -> A TIEMPO | N90: =IF(I90="","",NETWORKDAYS(C90+1,I90,DiasNOLaborables)) -> 9 | R90: 20 | Z90: SOLICITUD DE INFORMACIÓN HIDROMETEOROLÓGICA | AE90: 44094
A91: 80 | B91: 20200706141455 | C91: 44018 | D91: WEB (MÓDULO DE SOLICITUD DE INFORMACIÓN HIDROMETEOROLÓGICA) | E91: SOLICITUD DE INFORMACIÓN Y DOCUMENTOS | F91: SOLICITUD DE INFORMACIÓN HIDROMETEOROLÓGICA | G91: NO | H91: GRUPO DE SERVICIO AL CIUDADANO | I91: 44031 | J91: CORREO ELECTRÓNICO | L91: =IFERROR(WORKDAY(C91,R91,DiasNOLaborables),"") -> 44047 | M91: =+IF(C91="","",IF(I91="","SIN RESPUESTA",(IF(I91<=L91,"A TIEMPO","FUERA DE TIEMPO")))) -> A TIEMPO | N91: =IF(I91="","",NETWORKDAYS(C91+1,I91,DiasNOLaborables)) -> 9 | R91: 20 | Z91: SUELOS Y TIERRAS | AE91: 44100
A92: 81 | B92: 20200706104058 | C92: 44018 | D92: WEB (MÓDULO DE SOLICITUD DE INFORMACIÓN HIDROMETEOROLÓGICA) | E92: SOLICITUD DE INFORMACIÓN Y DOCUMENTOS | F92: SOLICITUD DE INFORMACIÓN HIDROMETEOROLÓGICA | G92: NO | H92: GRUPO DE SERVICIO AL CIUDADANO | I92: 44031 | J92: CORREO ELECTRÓNICO | L92: =IFERROR(WORKDAY(C92,R92,DiasNOLaborables),"") -> 44047 | M92: =+IF(C92="","",IF(I92="","SIN RESPUESTA",(IF(I92<=L92,"A TIEMPO","FUERA DE TIEMPO")))) -> A TIEMPO | N92: =IF(I92="","",NETWORKDAYS(C92+1,I92,DiasNOLaborables)) -> 9 | R92: 20 | Z92: VISITAS ACADÉMICAS | AE92: 44101
A93: 82 | B93: 20200706084802 | C93: 44018 | D93: WEB (MÓDULO DE SOLICITUD DE INFORMACIÓN HIDROMETEOROLÓGICA) | E93: SOLICITUD DE INFORMACIÓN Y DOCUMENTOS | F93: SOLICITUD DE INFORMACIÓN HIDROMETEOROLÓGICA | G93: NO | H93: GRUPO DE SERVICIO AL CIUDADANO | I93: 44031 | J93: CORREO ELECTRÓNICO | L93: =IFERROR(WORKDAY(C93,R93,DiasNOLaborables),"") -> 44047 | M93: =+IF(C93="","",IF(I93="","SIN RESPUESTA",(IF(I93<=L93,"A TIEMPO","FUERA DE TIEMPO")))) -> A TIEMPO | N93: =IF(I93="","",NETWORKDAYS(C93+1,I93,DiasNOLaborables)) -> 9 | R93: 20 | Z93: WEB Y CORREO | AE93: 44107
A94: 83 | B94: 20209050059272 | C94: 44029 | D94: MODULO CONTACTENOS | E94: SOLICITUD DE INFORMACIÓN Y DOCUMENTOS | F94: SOLICITUD DE INFORMACIÓN HIDROMETEOROLÓGICA | G94: NO | H94: GRUPO DE SERVICIO AL CIUDADANO | I94: 44034 | J94: CORREO ELECTRÓNICO | L94: =IFERROR(WORKDAY(C94,R94,DiasNOLaborables),"") -> 44061 | M94: =+IF(C94="","",IF(I94="","SIN RESPUESTA",(IF(I94<=L94,"A TIEMPO","FUERA DE TIEMPO")))) -> A TIEMPO | N94: =IF(I94="","",NETWORKDAYS(C94+1,I94,DiasNOLaborables)) -> 2 | R94: 20 | Z94: ZONIFICACIÓN HIDROGRÁFICA | AE94: 44108
A95: 84 | B95: 20209050059322 | C95: 44029 | D95: MODULO CONTACTENOS | E95: SOLICITUD DE INFORMACIÓN Y DOCUMENTOS | F95: SOLICITUD DE INFORMACIÓN HIDROMETEOROLÓGICA | G95: NO | H95: GRUPO DE SERVICIO AL CIUDADANO | I95: 44034 | J95: CORREO ELECTRÓNICO | L95: =IFERROR(WORKDAY(C95,R95,DiasNOLaborables),"") -> 44061 | M95: =+IF(C95="","",IF(I95="","SIN RESPUESTA",(IF(I95<=L95,"A TIEMPO","FUERA DE TIEMPO")))) -> A TIEMPO | N95: =IF(I95="","",NETWORKDAYS(C95+1,I95,DiasNOLaborables)) -> 2 | R95: 20 | AE95: 44114
A96: 85 | B96: 20209050059342 | C96: 44030 | D96: MODULO CONTACTENOS | E96: SOLICITUD DE INFORMACIÓN Y DOCUMENTOS | F96: SOLICITUD DE INFORMACIÓN HIDROMETEOROLÓGICA | G96: NO | H96: GRUPO DE SERVICIO AL CIUDADANO | I96: 44034 | J96: CORREO ELECTRÓNICO | L96: =IFERROR(WORKDAY(C96,R96,DiasNOLaborables),"") -> 44061 | M96: =+IF(C96="","",IF(I96="","SIN RESPUESTA",(IF(I96<=L96,"A TIEMPO","FUERA DE TIEMPO")))) -> A TIEMPO | N96: =IF(I96="","",NETWORKDAYS(C96+1,I96,DiasNOLaborables)) -> 2 | R96: 20 | Z96: MEDIO DE RECEPCIÓN | AE96: 44115
A97: 86 | B97: 20209050059352 | C97: 44030 | D97: MODULO CONTACTENOS | E97: SOLICITUD DE INFORMACIÓN Y DOCUMENTOS | F97: SOLICITUD DE INFORMACIÓN HIDROMETEOROLÓGICA | G97: NO | H97: GRUPO DE SERVICIO AL CIUDADANO | I97: 44034 | J97: CORREO ELECTRÓNICO | L97: =IFERROR(WORKDAY(C97,R97,DiasNOLaborables),"") -> 44061 | M97: =+IF(C97="","",IF(I97="","SIN RESPUESTA",(IF(I97<=L97,"A TIEMPO","FUERA DE TIEMPO")))) -> A TIEMPO | N97: =IF(I97="","",NETWORKDAYS(C97+1,I97,DiasNOLaborables)) -> 2 | R97: 20 | Z97: ATENCIÓN PRESENCIAL | AE97: 44116
A98: 87 | B98: 20209050059372 | C98: 44031 | D98: MODULO CONTACTENOS | E98: SOLICITUD DE INFORMACIÓN Y DOCUMENTOS | F98: SOLICITUD DE INFORMACIÓN HIDROMETEOROLÓGICA | G98: NO | H98: GRUPO DE SERVICIO AL CIUDADANO | I98: 44034 | J98: CORREO ELECTRÓNICO | L98: =IFERROR(WORKDAY(C98,R98,DiasNOLaborables),"") -> 44061 | M98: =+IF(C98="","",IF(I98="","SIN RESPUESTA",(IF(I98<=L98,"A TIEMPO","FUERA DE TIEMPO")))) -> A TIEMPO | N98: =IF(I98="","",NETWORKDAYS(C98+1,I98,DiasNOLaborables)) -> 2 | R98: 20 | Z98: ATENCIÓN TELEFÓNICA | AE98: 44121
A99: 88 | B99: 20209050059742 | C99: 44033 | D99: MODULO CONTACTENOS | E99: SOLICITUD DE INFORMACIÓN Y DOCUMENTOS | F99: SOLICITUD DE INFORMACIÓN HIDROMETEOROLÓGICA | G99: NO | H99: GRUPO DE SERVICIO AL CIUDADANO | I99: 44034 | J99: CORREO ELECTRÓNICO | L99: =IFERROR(WORKDAY(C99,R99,DiasNOLaborables),"") -> 44062 | M99: =+IF(C99="","",IF(I99="","SIN RESPUESTA",(IF(I99<=L99,"A TIEMPO","FUERA DE TIEMPO")))) -> A TIEMPO | N99: =IF(I99="","",NETWORKDAYS(C99+1,I99,DiasNOLaborables)) -> 1 | R99: 20 | Z99: BUZÓN DE SUGERENCIAS | AE99: 44122
A100: 89 | B100: 20209050059762 | C100: 44033 | D100: MODULO CONTACTENOS | E100: SOLICITUD DE INFORMACIÓN Y DOCUMENTOS | F100: SOLICITUD DE INFORMACIÓN HIDROMETEOROLÓGICA | G100: NO | H100: GRUPO DE SERVICIO AL CIUDADANO | I100: 44034 | J100: CORREO ELECTRÓNICO | L100: =IFERROR(WORKDAY(C100,R100,DiasNOLaborables),"") -> 44062 | M100: =+IF(C100="","",IF(I100="","SIN RESPUESTA",(IF(I100<=L100,"A TIEMPO","FUERA DE TIEMPO")))) -> A TIEMPO | N100: =IF(I100="","",NETWORKDAYS(C100+1,I100,DiasNOLaborables)) -> 1 | R100: 20 | Z100: CHAT | AE100: 44128
A101: 90 | B101: 20209050059802 | C101: 44033 | D101: MODULO CONTACTENOS | E101: SOLICITUD DE INFORMACIÓN Y DOCUMENTOS | F101: SOLICITUD DE INFORMACIÓN HIDROMETEOROLÓGICA | G101: NO | H101: GRUPO DE SERVICIO AL CIUDADANO | I101: 44034 | J101: CORREO ELECTRÓNICO | L101: =IFERROR(WORKDAY(C101,R101,DiasNOLaborables),"") -> 44062 | M101: =+IF(C101="","",IF(I101="","SIN RESPUESTA",(IF(I101<=L101,"A TIEMPO","FUERA DE TIEMPO")))) -> A TIEMPO | N101: =IF(I101="","",NETWORKDAYS(C101+1,I101,DiasNOLaborables)) -> 1 | R101: =IFERROR(VLOOKUP(E101,$Z$50:$AA$63,2),"") -> 20 | Z101: CORREO CERTIFICADO | AE101: 44129
A102: 91 | B102: 20209050059842 | C102: 44033 | D102: MODULO CONTACTENOS | E102: SOLICITUD DE INFORMACIÓN Y DOCUMENTOS | F102: SOLICITUD DE INFORMACIÓN HIDROMETEOROLÓGICA | G102: NO | H102: GRUPO DE SERVICIO AL CIUDADANO | I102: 44034 | J102: CORREO ELECTRÓNICO | L102: =IFERROR(WORKDAY(C102,R102,DiasNOLaborables),"") -> 44062 | M102: =+IF(C102="","",IF(I102="","SIN RESPUESTA",(IF(I102<=L102,"A TIEMPO","FUERA DE TIEMPO")))) -> A TIEMPO | N102: =IF(I102="","",NETWORKDAYS(C102+1,I102,DiasNOLaborables)) -> 1 | R102: 20 | Z102: CORREO ELECTRÓNICO | AE102: 44135
A103: 92 | B103: 20209050059922 | C103: 44033 | D103: MODULO CONTACTENOS | E103: SOLICITUD DE INFORMACIÓN Y DOCUMENTOS | F103: SOLICITUD DE INFORMACIÓN HIDROMETEOROLÓGICA | G103: NO | H103: GRUPO DE SERVICIO AL CIUDADANO | I103: 44034 | J103: CORREO ELECTRÓNICO | L103: =IFERROR(WORKDAY(C103,R103,DiasNOLaborables),"") -> 44062 | M103: =+IF(C103="","",IF(I103="","SIN RESPUESTA",(IF(I103<=L103,"A TIEMPO","FUERA DE TIEMPO")))) -> A TIEMPO | N103: =IF(I103="","",NETWORKDAYS(C103+1,I103,DiasNOLaborables)) -> 1 | R103: 20 | Z103: FAX | AE103: 44136
A104: 93 | B104: 20209050059932 | C104: 44033 | D104: MODULO CONTACTENOS | E104: SOLICITUD DE INFORMACIÓN Y DOCUMENTOS | F104: SOLICITUD DE INFORMACIÓN HIDROMETEOROLÓGICA | G104: NO | H104: GRUPO DE SERVICIO AL CIUDADANO | I104: 44034 | J104: CORREO ELECTRÓNICO | L104: =IFERROR(WORKDAY(C104,R104,DiasNOLaborables),"") -> 44062 | M104: =+IF(C104="","",IF(I104="","SIN RESPUESTA",(IF(I104<=L104,"A TIEMPO","FUERA DE TIEMPO")))) -> A TIEMPO | N104: =IF(I104="","",NETWORKDAYS(C104+1,I104,DiasNOLaborables)) -> 1 | R104: 20 | Z104: INTERNO | AE104: 44142
A105: 94 | B105: 20200709215124 | C105: 44021 | D105: WEB (MÓDULO DE SOLICITUD DE INFORMACIÓN HIDROMETEOROLÓGICA) | E105: SOLICITUD DE INFORMACIÓN Y DOCUMENTOS | F105: SOLICITUD DE INFORMACIÓN HIDROMETEOROLÓGICA | G105: NO | H105: GRUPO DE SERVICIO AL CIUDADANO | I105: 44034 | J105: CORREO ELECTRÓNICO | L105: =IFERROR(WORKDAY(C105,R105,DiasNOLaborables),"") -> 44050 | M105: =+IF(C105="","",IF(I105="","SIN RESPUESTA",(IF(I105<=L105,"A TIEMPO","FUERA DE TIEMPO")))) -> A TIEMPO | N105: =IF(I105="","",NETWORKDAYS(C105+1,I105,DiasNOLaborables)) -> 8 | O105: =IF(NETWORKDAYS(L105+1,I105,DiasNOLaborables)<=0,"",NETWORKDAYS(L105+1,I105,DiasNOLaborables)) ->  | R105: 20 | Z105: MODULO CONTACTENOS | AE105: 44143
A106: 95 | B106: 20200709214339 | C106: 44021 | D106: WEB (MÓDULO DE SOLICITUD DE INFORMACIÓN HIDROMETEOROLÓGICA) | E106: SOLICITUD DE INFORMACIÓN Y DOCUMENTOS | F106: SOLICITUD DE INFORMACIÓN HIDROMETEOROLÓGICA | G106: NO | H106: GRUPO DE SERVICIO AL CIUDADANO | I106: 44034 | J106: CORREO ELECTRÓNICO | L106: =IFERROR(WORKDAY(C106,R106,DiasNOLaborables),"") -> 44050 | M106: =+IF(C106="","",IF(I106="","SIN RESPUESTA",(IF(I106<=L106,"A TIEMPO","FUERA DE TIEMPO")))) -> A TIEMPO | N106: =IF(I106="","",NETWORKDAYS(C106+1,I106,DiasNOLaborables)) -> 8 | R106: 20 | Z106: WEB (MÓDULO DE SOLICITUD DE INFORMACIÓN HIDROMETEOROLÓGICA) | AE106: 44149
A107: 96 | B107: 20200709212841 | C107: 44021 | D107: WEB (MÓDULO DE SOLICITUD DE INFORMACIÓN HIDROMETEOROLÓGICA) | E107: SOLICITUD DE INFORMACIÓN Y DOCUMENTOS | F107: SOLICITUD DE INFORMACIÓN HIDROMETEOROLÓGICA | G107: NO | H107: GRUPO DE SERVICIO AL CIUDADANO | I107: 44034 | J107: CORREO ELECTRÓNICO | L107: =IFERROR(WORKDAY(C107,R107,DiasNOLaborables),"") -> 44050 | M107: =+IF(C107="","",IF(I107="","SIN RESPUESTA",(IF(I107<=L107,"A TIEMPO","FUERA DE TIEMPO")))) -> A TIEMPO | N107: =IF(I107="","",NETWORKDAYS(C107+1,I107,DiasNOLaborables)) -> 8 | R107: 20 | AE107: 44150
A108: 97 | B108: 20200709202720 | C108: 44021 | D108: WEB (MÓDULO DE SOLICITUD DE INFORMACIÓN HIDROMETEOROLÓGICA) | E108: SOLICITUD DE INFORMACIÓN Y DOCUMENTOS | F108: SOLICITUD DE INFORMACIÓN HIDROMETEOROLÓGICA | G108: NO | H108: GRUPO DE SERVICIO AL CIUDADANO | I108: 44034 | J108: CORREO ELECTRÓNICO | L108: =IFERROR(WORKDAY(C108,R108,DiasNOLaborables),"") -> 44050 | M108: =+IF(C108="","",IF(I108="","SIN RESPUESTA",(IF(I108<=L108,"A TIEMPO","FUERA DE TIEMPO")))) -> A TIEMPO | N108: =IF(I108="","",NETWORKDAYS(C108+1,I108,DiasNOLaborables)) -> 8 | R108: 20 | Z108: ¿REQUERIMIENTO FUE ESCALADO? | AE108: 44156
A109: 98 | B109: 20200709201910 | C109: 44021 | D109: WEB (MÓDULO DE SOLICITUD DE INFORMACIÓN HIDROMETEOROLÓGICA) | E109: SOLICITUD DE INFORMACIÓN Y DOCUMENTOS | F109: SOLICITUD DE INFORMACIÓN HIDROMETEOROLÓGICA | G109: NO | H109: GRUPO DE SERVICIO AL CIUDADANO | I109: 44034 | J109: CORREO ELECTRÓNICO | L109: =IFERROR(WORKDAY(C109,R109,DiasNOLaborables),"") -> 44050 | M109: =+IF(C109="","",IF(I109="","SIN RESPUESTA",(IF(I109<=L109,"A TIEMPO","FUERA DE TIEMPO")))) -> A TIEMPO | N109: =IF(I109="","",NETWORKDAYS(C109+1,I109,DiasNOLaborables)) -> 8 | R109: 20 | Z109: SI | AE109: 44157
A110: 99 | B110: 20200709201748 | C110: 44021 | D110: WEB (MÓDULO DE SOLICITUD DE INFORMACIÓN HIDROMETEOROLÓGICA) | E110: SOLICITUD DE INFORMACIÓN Y DOCUMENTOS | F110: SOLICITUD DE INFORMACIÓN HIDROMETEOROLÓGICA | G110: NO | H110: GRUPO DE SERVICIO AL CIUDADANO | I110: 44034 | J110: CORREO ELECTRÓNICO | L110: =IFERROR(WORKDAY(C110,R110,DiasNOLaborables),"") -> 44050 | M110: =+IF(C110="","",IF(I110="","SIN RESPUESTA",(IF(I110<=L110,"A TIEMPO","FUERA DE TIEMPO")))) -> A TIEMPO | N110: =IF(I110="","",NETWORKDAYS(C110+1,I110,DiasNOLaborables)) -> 8 | R110: 20 | Z110: NO | AE110: 44163
A111: 100 | B111: 20200709201629 | C111: 44021 | D111: WEB (MÓDULO DE SOLICITUD DE INFORMACIÓN HIDROMETEOROLÓGICA) | E111: SOLICITUD DE INFORMACIÓN Y DOCUMENTOS | F111: SOLICITUD DE INFORMACIÓN HIDROMETEOROLÓGICA | G111: NO | H111: GRUPO DE SERVICIO AL CIUDADANO | I111: 44034 | J111: CORREO ELECTRÓNICO | L111: =IFERROR(WORKDAY(C111,R111,DiasNOLaborables),"") -> 44050 | M111: =+IF(C111="","",IF(I111="","SIN RESPUESTA",(IF(I111<=L111,"A TIEMPO","FUERA DE TIEMPO")))) -> A TIEMPO | N111: =IF(I111="","",NETWORKDAYS(C111+1,I111,DiasNOLaborables)) -> 8 | R111: 20 | AE111: 44164
A112: 101 | B112: 20200709201409 | C112: 44021 | D112: WEB (MÓDULO DE SOLICITUD DE INFORMACIÓN HIDROMETEOROLÓGICA) | E112: SOLICITUD DE INFORMACIÓN Y DOCUMENTOS | F112: SOLICITUD DE INFORMACIÓN HIDROMETEOROLÓGICA | G112: NO | H112: GRUPO DE SERVICIO AL CIUDADANO | I112: 44034 | J112: CORREO ELECTRÓNICO | L112: =IFERROR(WORKDAY(C112,R112,DiasNOLaborables),"") -> 44050 | M112: =+IF(C112="","",IF(I112="","SIN RESPUESTA",(IF(I112<=L112,"A TIEMPO","FUERA DE TIEMPO")))) -> A TIEMPO | N112: =IF(I112="","",NETWORKDAYS(C112+1,I112,DiasNOLaborables)) -> 8 | R112: 20 | Z112: CANAL POR EL CUAL FUE RESUELTO EL REQUERIMIENTO | AE112: 44170
A113: 102 | B113: 20200709201144 | C113: 44021 | D113: WEB (MÓDULO DE SOLICITUD DE INFORMACIÓN HIDROMETEOROLÓGICA) | E113: SOLICITUD DE INFORMACIÓN Y DOCUMENTOS | F113: SOLICITUD DE INFORMACIÓN HIDROMETEOROLÓGICA | G113: NO | H113: GRUPO DE SERVICIO AL CIUDADANO | I113: 44034 | J113: CORREO ELECTRÓNICO | L113: =IFERROR(WORKDAY(C113,R113,DiasNOLaborables),"") -> 44050 | M113: =+IF(C113="","",IF(I113="","SIN RESPUESTA",(IF(I113<=L113,"A TIEMPO","FUERA DE TIEMPO")))) -> A TIEMPO | N113: =IF(I113="","",NETWORKDAYS(C113+1,I113,DiasNOLaborables)) -> 8 | R113: 20 | Z113: CORREO ELECTRÓNICO | AE113: 44171
A114: 103 | B114: 20200709190127 | C114: 44021 | D114: WEB (MÓDULO DE SOLICITUD DE INFORMACIÓN HIDROMETEOROLÓGICA) | E114: SOLICITUD DE INFORMACIÓN Y DOCUMENTOS | F114: SOLICITUD DE INFORMACIÓN HIDROMETEOROLÓGICA | G114: NO | H114: GRUPO DE SERVICIO AL CIUDADANO | I114: 44034 | J114: CORREO ELECTRÓNICO | L114: =IFERROR(WORKDAY(C114,R114,DiasNOLaborables),"") -> 44050 | M114: =+IF(C114="","",IF(I114="","SIN RESPUESTA",(IF(I114<=L114,"A TIEMPO","FUERA DE TIEMPO")))) -> A TIEMPO | N114: =IF(I114="","",NETWORKDAYS(C114+1,I114,DiasNOLaborables)) -> 8 | R114: 20 | Z114: CORREO CERTIFICADO | AE114: 44173
A115: 104 | B115: 20200709183955 | C115: 44021 | D115: WEB (MÓDULO DE SOLICITUD DE INFORMACIÓN HIDROMETEOROLÓGICA) | E115: SOLICITUD DE INFORMACIÓN Y DOCUMENTOS | F115: SOLICITUD DE INFORMACIÓN HIDROMETEOROLÓGICA | G115: NO | H115: GRUPO DE SERVICIO AL CIUDADANO | I115: 44034 | J115: CORREO ELECTRÓNICO | L115: =IFERROR(WORKDAY(C115,R115,DiasNOLaborables),"") -> 44050 | M115: =+IF(C115="","",IF(I115="","SIN RESPUESTA",(IF(I115<=L115,"A TIEMPO","FUERA DE TIEMPO")))) -> A TIEMPO | N115: =IF(I115="","",NETWORKDAYS(C115+1,I115,DiasNOLaborables)) -> 8 | R115: 20 | AE115: 44177
A116: 105 | B116: 20200709174602 | C116: 44021 | D116: WEB (MÓDULO DE SOLICITUD DE INFORMACIÓN HIDROMETEOROLÓGICA) | E116: SOLICITUD DE INFORMACIÓN Y DOCUMENTOS | F116: SOLICITUD DE INFORMACIÓN HIDROMETEOROLÓGICA | G116: NO | H116: GRUPO DE SERVICIO AL CIUDADANO | I116: 44034 | J116: CORREO ELECTRÓNICO | L116: =IFERROR(WORKDAY(C116,R116,DiasNOLaborables),"") -> 44050 | M116: =+IF(C116="","",IF(I116="","SIN RESPUESTA",(IF(I116<=L116,"A TIEMPO","FUERA DE TIEMPO")))) -> A TIEMPO | N116: =IF(I116="","",NETWORKDAYS(C116+1,I116,DiasNOLaborables)) -> 8 | R116: 20 | AE116: 44178
A117: 106 | B117: 20200709174434 | C117: 44021 | D117: WEB (MÓDULO DE SOLICITUD DE INFORMACIÓN HIDROMETEOROLÓGICA) | E117: SOLICITUD DE INFORMACIÓN Y DOCUMENTOS | F117: SOLICITUD DE INFORMACIÓN HIDROMETEOROLÓGICA | G117: NO | H117: GRUPO DE SERVICIO AL CIUDADANO | I117: 44034 | J117: CORREO ELECTRÓNICO | L117: =IFERROR(WORKDAY(C117,R117,DiasNOLaborables),"") -> 44050 | M117: =+IF(C117="","",IF(I117="","SIN RESPUESTA",(IF(I117<=L117,"A TIEMPO","FUERA DE TIEMPO")))) -> A TIEMPO | N117: =IF(I117="","",NETWORKDAYS(C117+1,I117,DiasNOLaborables)) -> 8 | R117: 20 | AE117: 44184
A118: 107 | B118: 20200709174342 | C118: 44021 | D118: WEB (MÓDULO DE SOLICITUD DE INFORMACIÓN HIDROMETEOROLÓGICA) | E118: SOLICITUD DE INFORMACIÓN Y DOCUMENTOS | F118: SOLICITUD DE INFORMACIÓN HIDROMETEOROLÓGICA | G118: NO | H118: GRUPO DE SERVICIO AL CIUDADANO | I118: 44034 | J118: CORREO ELECTRÓNICO | L118: =IFERROR(WORKDAY(C118,R118,DiasNOLaborables),"") -> 44050 | M118: =+IF(C118="","",IF(I118="","SIN RESPUESTA",(IF(I118<=L118,"A TIEMPO","FUERA DE TIEMPO")))) -> A TIEMPO | N118: =IF(I118="","",NETWORKDAYS(C118+1,I118,DiasNOLaborables)) -> 8 | R118: 20 | AE118: 44185
A119: 108 | B119: 20200709174246 | C119: 44021 | D119: WEB (MÓDULO DE SOLICITUD DE INFORMACIÓN HIDROMETEOROLÓGICA) | E119: SOLICITUD DE INFORMACIÓN Y DOCUMENTOS | F119: SOLICITUD DE INFORMACIÓN HIDROMETEOROLÓGICA | G119: NO | H119: GRUPO DE SERVICIO AL CIUDADANO | I119: 44034 | J119: CORREO ELECTRÓNICO | L119: =IFERROR(WORKDAY(C119,R119,DiasNOLaborables),"") -> 44050 | M119: =+IF(C119="","",IF(I119="","SIN RESPUESTA",(IF(I119<=L119,"A TIEMPO","FUERA DE TIEMPO")))) -> A TIEMPO | N119: =IF(I119="","",NETWORKDAYS(C119+1,I119,DiasNOLaborables)) -> 8 | R119: 20 | AE119: 44190
A120: 109 | B120: 20200709174150 | C120: 44021 | D120: WEB (MÓDULO DE SOLICITUD DE INFORMACIÓN HIDROMETEOROLÓGICA) | E120: SOLICITUD DE INFORMACIÓN Y DOCUMENTOS | F120: SOLICITUD DE INFORMACIÓN HIDROMETEOROLÓGICA | G120: NO | H120: GRUPO DE SERVICIO AL CIUDADANO | I120: 44034 | J120: CORREO ELECTRÓNICO | L120: =IFERROR(WORKDAY(C120,R120,DiasNOLaborables),"") -> 44050 | M120: =+IF(C120="","",IF(I120="","SIN RESPUESTA",(IF(I120<=L120,"A TIEMPO","FUERA DE TIEMPO")))) -> A TIEMPO | N120: =IF(I120="","",NETWORKDAYS(C120+1,I120,DiasNOLaborables)) -> 8 | R120: 20 | AE120: 44191
A121: 110 | B121: 20200709174052 | C121: 44021 | D121: WEB (MÓDULO DE SOLICITUD DE INFORMACIÓN HIDROMETEOROLÓGICA) | E121: SOLICITUD DE INFORMACIÓN Y DOCUMENTOS | F121: SOLICITUD DE INFORMACIÓN HIDROMETEOROLÓGICA | G121: NO | H121: GRUPO DE SERVICIO AL CIUDADANO | I121: 44034 | J121: CORREO ELECTRÓNICO | L121: =IFERROR(WORKDAY(C121,R121,DiasNOLaborables),"") -> 44050 | M121: =+IF(C121="","",IF(I121="","SIN RESPUESTA",(IF(I121<=L121,"A TIEMPO","FUERA DE TIEMPO")))) -> A TIEMPO | N121: =IF(I121="","",NETWORKDAYS(C121+1,I121,DiasNOLaborables)) -> 8 | R121: 20 | AE121: 44192
A122: 111 | B122: 20200709173757 | C122: 44021 | D122: WEB (MÓDULO DE SOLICITUD DE INFORMACIÓN HIDROMETEOROLÓGICA) | E122: SOLICITUD DE INFORMACIÓN Y DOCUMENTOS | F122: SOLICITUD DE INFORMACIÓN HIDROMETEOROLÓGICA | G122: NO | H122: GRUPO DE SERVICIO AL CIUDADANO | I122: 44034 | J122: CORREO ELECTRÓNICO | L122: =IFERROR(WORKDAY(C122,R122,DiasNOLaborables),"") -> 44050 | M122: =+IF(C122="","",IF(I122="","SIN RESPUESTA",(IF(I122<=L122,"A TIEMPO","FUERA DE TIEMPO")))) -> A TIEMPO | N122: =IF(I122="","",NETWORKDAYS(C122+1,I122,DiasNOLaborables)) -> 8 | R122: 20
A123: 112 | B123: 20200709173700 | C123: 44021 | D123: WEB (MÓDULO DE SOLICITUD DE INFORMACIÓN HIDROMETEOROLÓGICA) | E123: SOLICITUD DE INFORMACIÓN Y DOCUMENTOS | F123: SOLICITUD DE INFORMACIÓN HIDROMETEOROLÓGICA | G123: NO | H123: GRUPO DE SERVICIO AL CIUDADANO | I123: 44034 | J123: CORREO ELECTRÓNICO | L123: =IFERROR(WORKDAY(C123,R123,DiasNOLaborables),"") -> 44050 | M123: =+IF(C123="","",IF(I123="","SIN RESPUESTA",(IF(I123<=L123,"A TIEMPO","FUERA DE TIEMPO")))) -> A TIEMPO | N123: =IF(I123="","",NETWORKDAYS(C123+1,I123,DiasNOLaborables)) -> 8 | R123: 20
A124: 113 | B124: 20200709173544 | C124: 44021 | D124: WEB (MÓDULO DE SOLICITUD DE INFORMACIÓN HIDROMETEOROLÓGICA) | E124: SOLICITUD DE INFORMACIÓN Y DOCUMENTOS | F124: SOLICITUD DE INFORMACIÓN HIDROMETEOROLÓGICA | G124: NO | H124: GRUPO DE SERVICIO AL CIUDADANO | I124: 44034 | J124: CORREO ELECTRÓNICO | L124: =IFERROR(WORKDAY(C124,R124,DiasNOLaborables),"") -> 44050 | M124: =+IF(C124="","",IF(I124="","SIN RESPUESTA",(IF(I124<=L124,"A TIEMPO","FUERA DE TIEMPO")))) -> A TIEMPO | N124: =IF(I124="","",NETWORKDAYS(C124+1,I124,DiasNOLaborables)) -> 8 | R124: 20
A125: 114 | B125: 20200709173424 | C125: 44021 | D125: WEB (MÓDULO DE SOLICITUD DE INFORMACIÓN HIDROMETEOROLÓGICA) | E125: SOLICITUD DE INFORMACIÓN Y DOCUMENTOS | F125: SOLICITUD DE INFORMACIÓN HIDROMETEOROLÓGICA | G125: NO | H125: GRUPO DE SERVICIO AL CIUDADANO | I125: 44034 | J125: CORREO ELECTRÓNICO | L125: =IFERROR(WORKDAY(C125,R125,DiasNOLaborables),"") -> 44050 | M125: =+IF(C125="","",IF(I125="","SIN RESPUESTA",(IF(I125<=L125,"A TIEMPO","FUERA DE TIEMPO")))) -> A TIEMPO | N125: =IF(I125="","",NETWORKDAYS(C125+1,I125,DiasNOLaborables)) -> 8 | R125: 20
A126: 115 | B126: 20200709173307 | C126: 44021 | D126: WEB (MÓDULO DE SOLICITUD DE INFORMACIÓN HIDROMETEOROLÓGICA) | E126: SOLICITUD DE INFORMACIÓN Y DOCUMENTOS | F126: SOLICITUD DE INFORMACIÓN HIDROMETEOROLÓGICA | G126: NO | H126: GRUPO DE SERVICIO AL CIUDADANO | I126: 44034 | J126: CORREO ELECTRÓNICO | L126: =IFERROR(WORKDAY(C126,R126,DiasNOLaborables),"") -> 44050 | M126: =+IF(C126="","",IF(I126="","SIN RESPUESTA",(IF(I126<=L126,"A TIEMPO","FUERA DE TIEMPO")))) -> A TIEMPO | N126: =IF(I126="","",NETWORKDAYS(C126+1,I126,DiasNOLaborables)) -> 8 | R126: 20
A127: 116 | B127: 20200709161916 | C127: 44021 | D127: WEB (MÓDULO DE SOLICITUD DE INFORMACIÓN HIDROMETEOROLÓGICA) | E127: SOLICITUD DE INFORMACIÓN Y DOCUMENTOS | F127: SOLICITUD DE INFORMACIÓN HIDROMETEOROLÓGICA | G127: NO | H127: GRUPO DE SERVICIO AL CIUDADANO | I127: 44034 | J127: CORREO ELECTRÓNICO | L127: =IFERROR(WORKDAY(C127,R127,DiasNOLaborables),"") -> 44050 | M127: =+IF(C127="","",IF(I127="","SIN RESPUESTA",(IF(I127<=L127,"A TIEMPO","FUERA DE TIEMPO")))) -> A TIEMPO | N127: =IF(I127="","",NETWORKDAYS(C127+1,I127,DiasNOLaborables)) -> 8 | R127: 20
A128: 117 | B128: 20200709161609 | C128: 44021 | D128: WEB (MÓDULO DE SOLICITUD DE INFORMACIÓN HIDROMETEOROLÓGICA) | E128: SOLICITUD DE INFORMACIÓN Y DOCUMENTOS | F128: SOLICITUD DE INFORMACIÓN HIDROMETEOROLÓGICA | G128: NO | H128: GRUPO DE SERVICIO AL CIUDADANO | I128: 44034 | J128: CORREO ELECTRÓNICO | L128: =IFERROR(WORKDAY(C128,R128,DiasNOLaborables),"") -> 44050 | M128: =+IF(C128="","",IF(I128="","SIN RESPUESTA",(IF(I128<=L128,"A TIEMPO","FUERA DE TIEMPO")))) -> A TIEMPO | N128: =IF(I128="","",NETWORKDAYS(C128+1,I128,DiasNOLaborables)) -> 8 | R128: 20
A129: 118 | B129: 20200709161006 | C129: 44021 | D129: WEB (MÓDULO DE SOLICITUD DE INFORMACIÓN HIDROMETEOROLÓGICA) | E129: SOLICITUD DE INFORMACIÓN Y DOCUMENTOS | F129: SOLICITUD DE INFORMACIÓN HIDROMETEOROLÓGICA | G129: NO | H129: GRUPO DE SERVICIO AL CIUDADANO | I129: 44034 | J129: CORREO ELECTRÓNICO | L129: =IFERROR(WORKDAY(C129,R129,DiasNOLaborables),"") -> 44050 | M129: =+IF(C129="","",IF(I129="","SIN RESPUESTA",(IF(I129<=L129,"A TIEMPO","FUERA DE TIEMPO")))) -> A TIEMPO | N129: =IF(I129="","",NETWORKDAYS(C129+1,I129,DiasNOLaborables)) -> 8 | R129: 20
A130: 119 | B130: 20200709160515 | C130: 44021 | D130: WEB (MÓDULO DE SOLICITUD DE INFORMACIÓN HIDROMETEOROLÓGICA) | E130: SOLICITUD DE INFORMACIÓN Y DOCUMENTOS | F130: SOLICITUD DE INFORMACIÓN HIDROMETEOROLÓGICA | G130: NO | H130: GRUPO DE SERVICIO AL CIUDADANO | I130: 44034 | J130: CORREO ELECTRÓNICO | L130: =IFERROR(WORKDAY(C130,R130,DiasNOLaborables),"") -> 44050 | M130: =+IF(C130="","",IF(I130="","SIN RESPUESTA",(IF(I130<=L130,"A TIEMPO","FUERA DE TIEMPO")))) -> A TIEMPO | N130: =IF(I130="","",NETWORKDAYS(C130+1,I130,DiasNOLaborables)) -> 8 | R130: 20
A131: 120 | B131: 20200709155606 | C131: 44021 | D131: WEB (MÓDULO DE SOLICITUD DE INFORMACIÓN HIDROMETEOROLÓGICA) | E131: SOLICITUD DE INFORMACIÓN Y DOCUMENTOS | F131: SOLICITUD DE INFORMACIÓN HIDROMETEOROLÓGICA | G131: NO | H131: GRUPO DE SERVICIO AL CIUDADANO | I131: 44034 | J131: CORREO ELECTRÓNICO | L131: =IFERROR(WORKDAY(C131,R131,DiasNOLaborables),"") -> 44050 | M131: =+IF(C131="","",IF(I131="","SIN RESPUESTA",(IF(I131<=L131,"A TIEMPO","FUERA DE TIEMPO")))) -> A TIEMPO | N131: =IF(I131="","",NETWORKDAYS(C131+1,I131,DiasNOLaborables)) -> 8 | R131: 20
A132: 121 | B132: 20200709155519 | C132: 44021 | D132: WEB (MÓDULO DE SOLICITUD DE INFORMACIÓN HIDROMETEOROLÓGICA) | E132: SOLICITUD DE INFORMACIÓN Y DOCUMENTOS | F132: SOLICITUD DE INFORMACIÓN HIDROMETEOROLÓGICA | G132: NO | H132: GRUPO DE SERVICIO AL CIUDADANO | I132: 44034 | J132: CORREO ELECTRÓNICO | L132: =IFERROR(WORKDAY(C132,R132,DiasNOLaborables),"") -> 44050 | M132: =+IF(C132="","",IF(I132="","SIN RESPUESTA",(IF(I132<=L132,"A TIEMPO","FUERA DE TIEMPO")))) -> A TIEMPO | N132: =IF(I132="","",NETWORKDAYS(C132+1,I132,DiasNOLaborables)) -> 8 | R132: 20
A133: 122 | B133: 20200709155137 | C133: 44021 | D133: WEB (MÓDULO DE SOLICITUD DE INFORMACIÓN HIDROMETEOROLÓGICA) | E133: SOLICITUD DE INFORMACIÓN Y DOCUMENTOS | F133: SOLICITUD DE INFORMACIÓN HIDROMETEOROLÓGICA | G133: NO | H133: GRUPO DE SERVICIO AL CIUDADANO | I133: 44034 | J133: CORREO ELECTRÓNICO | L133: =IFERROR(WORKDAY(C133,R133,DiasNOLaborables),"") -> 44050 | M133: =+IF(C133="","",IF(I133="","SIN RESPUESTA",(IF(I133<=L133,"A TIEMPO","FUERA DE TIEMPO")))) -> A TIEMPO | N133: =IF(I133="","",NETWORKDAYS(C133+1,I133,DiasNOLaborables)) -> 8 | R133: 20
A134: 123 | B134: 20200709155059 | C134: 44021 | D134: WEB (MÓDULO DE SOLICITUD DE INFORMACIÓN HIDROMETEOROLÓGICA) | E134: SOLICITUD DE INFORMACIÓN Y DOCUMENTOS | F134: SOLICITUD DE INFORMACIÓN HIDROMETEOROLÓGICA | G134: NO | H134: GRUPO DE SERVICIO AL CIUDADANO | I134: 44034 | J134: CORREO ELECTRÓNICO | L134: =IFERROR(WORKDAY(C134,R134,DiasNOLaborables),"") -> 44050 | M134: =+IF(C134="","",IF(I134="","SIN RESPUESTA",(IF(I134<=L134,"A TIEMPO","FUERA DE TIEMPO")))) -> A TIEMPO | N134: =IF(I134="","",NETWORKDAYS(C134+1,I134,DiasNOLaborables)) -> 8 | R134: 20
A135: 124 | B135: 20200709154932 | C135: 44021 | D135: WEB (MÓDULO DE SOLICITUD DE INFORMACIÓN HIDROMETEOROLÓGICA) | E135: SOLICITUD DE INFORMACIÓN Y DOCUMENTOS | F135: SOLICITUD DE INFORMACIÓN HIDROMETEOROLÓGICA | G135: NO | H135: GRUPO DE SERVICIO AL CIUDADANO | I135: 44034 | J135: CORREO ELECTRÓNICO | L135: =IFERROR(WORKDAY(C135,R135,DiasNOLaborables),"") -> 44050 | M135: =+IF(C135="","",IF(I135="","SIN RESPUESTA",(IF(I135<=L135,"A TIEMPO","FUERA DE TIEMPO")))) -> A TIEMPO | N135: =IF(I135="","",NETWORKDAYS(C135+1,I135,DiasNOLaborables)) -> 8 | R135: 20
A136: 125 | B136: 20200709154646 | C136: 44021 | D136: WEB (MÓDULO DE SOLICITUD DE INFORMACIÓN HIDROMETEOROLÓGICA) | E136: SOLICITUD DE INFORMACIÓN Y DOCUMENTOS | F136: SOLICITUD DE INFORMACIÓN HIDROMETEOROLÓGICA | G136: NO | H136: GRUPO DE SERVICIO AL CIUDADANO | I136: 44034 | J136: CORREO ELECTRÓNICO | L136: =IFERROR(WORKDAY(C136,R136,DiasNOLaborables),"") -> 44050 | M136: =+IF(C136="","",IF(I136="","SIN RESPUESTA",(IF(I136<=L136,"A TIEMPO","FUERA DE TIEMPO")))) -> A TIEMPO | N136: =IF(I136="","",NETWORKDAYS(C136+1,I136,DiasNOLaborables)) -> 8 | R136: 20
A137: 126 | B137: 20200709153916 | C137: 44021 | D137: WEB (MÓDULO DE SOLICITUD DE INFORMACIÓN HIDROMETEOROLÓGICA) | E137: SOLICITUD DE INFORMACIÓN Y DOCUMENTOS | F137: SOLICITUD DE INFORMACIÓN HIDROMETEOROLÓGICA | G137: NO | H137: GRUPO DE SERVICIO AL CIUDADANO | I137: 44034 | J137: CORREO ELECTRÓNICO | L137: =IFERROR(WORKDAY(C137,R137,DiasNOLaborables),"") -> 44050 | M137: =+IF(C137="","",IF(I137="","SIN RESPUESTA",(IF(I137<=L137,"A TIEMPO","FUERA DE TIEMPO")))) -> A TIEMPO | N137: =IF(I137="","",NETWORKDAYS(C137+1,I137,DiasNOLaborables)) -> 8 | R137: 20
A138: 127 | B138: 20200709153223 | C138: 44021 | D138: WEB (MÓDULO DE SOLICITUD DE INFORMACIÓN HIDROMETEOROLÓGICA) | E138: SOLICITUD DE INFORMACIÓN Y DOCUMENTOS | F138: SOLICITUD DE INFORMACIÓN HIDROMETEOROLÓGICA | G138: NO | H138: GRUPO DE SERVICIO AL CIUDADANO | I138: 44034 | J138: CORREO ELECTRÓNICO | L138: =IFERROR(WORKDAY(C138,R138,DiasNOLaborables),"") -> 44050 | M138: =+IF(C138="","",IF(I138="","SIN RESPUESTA",(IF(I138<=L138,"A TIEMPO","FUERA DE TIEMPO")))) -> A TIEMPO | N138: =IF(I138="","",NETWORKDAYS(C138+1,I138,DiasNOLaborables)) -> 8 | R138: 20
A139: 128 | B139: 20200709153055 | C139: 44021 | D139: WEB (MÓDULO DE SOLICITUD DE INFORMACIÓN HIDROMETEOROLÓGICA) | E139: SOLICITUD DE INFORMACIÓN Y DOCUMENTOS | F139: SOLICITUD DE INFORMACIÓN HIDROMETEOROLÓGICA | G139: NO | H139: GRUPO DE SERVICIO AL CIUDADANO | I139: 44034 | J139: CORREO ELECTRÓNICO | L139: =IFERROR(WORKDAY(C139,R139,DiasNOLaborables),"") -> 44050 | M139: =+IF(C139="","",IF(I139="","SIN RESPUESTA",(IF(I139<=L139,"A TIEMPO","FUERA DE TIEMPO")))) -> A TIEMPO | N139: =IF(I139="","",NETWORKDAYS(C139+1,I139,DiasNOLaborables)) -> 8 | R139: 20
A140: 129 | B140: 20200709153009 | C140: 44021 | D140: WEB (MÓDULO DE SOLICITUD DE INFORMACIÓN HIDROMETEOROLÓGICA) | E140: SOLICITUD DE INFORMACIÓN Y DOCUMENTOS | F140: SOLICITUD DE INFORMACIÓN HIDROMETEOROLÓGICA | G140: NO | H140: GRUPO DE SERVICIO AL CIUDADANO | I140: 44034 | J140: CORREO ELECTRÓNICO | L140: =IFERROR(WORKDAY(C140,R140,DiasNOLaborables),"") -> 44050 | M140: =+IF(C140="","",IF(I140="","SIN RESPUESTA",(IF(I140<=L140,"A TIEMPO","FUERA DE TIEMPO")))) -> A TIEMPO | N140: =IF(I140="","",NETWORKDAYS(C140+1,I140,DiasNOLaborables)) -> 8 | R140: 20
A141: 130 | B141: 20200709152844 | C141: 44021 | D141: WEB (MÓDULO DE SOLICITUD DE INFORMACIÓN HIDROMETEOROLÓGICA) | E141: SOLICITUD DE INFORMACIÓN Y DOCUMENTOS | F141: SOLICITUD DE INFORMACIÓN HIDROMETEOROLÓGICA | G141: NO | H141: GRUPO DE SERVICIO AL CIUDADANO | I141: 44034 | J141: CORREO ELECTRÓNICO | L141: =IFERROR(WORKDAY(C141,R141,DiasNOLaborables),"") -> 44050 | M141: =+IF(C141="","",IF(I141="","SIN RESPUESTA",(IF(I141<=L141,"A TIEMPO","FUERA DE TIEMPO")))) -> A TIEMPO | N141: =IF(I141="","",NETWORKDAYS(C141+1,I141,DiasNOLaborables)) -> 8 | R141: 20
A142: =IF(B141<>"",A141+1,"") -> 131 | B142: 20200709151456 | C142: 44021 | D142: WEB (MÓDULO DE SOLICITUD DE INFORMACIÓN HIDROMETEOROLÓGICA) | E142: SOLICITUD DE INFORMACIÓN Y DOCUMENTOS | F142: SOLICITUD DE INFORMACIÓN HIDROMETEOROLÓGICA | G142: NO | H142: GRUPO DE SERVICIO AL CIUDADANO | I142: 44034 | J142: CORREO ELECTRÓNICO | L142: =IFERROR(WORKDAY(C142,R142,DiasNOLaborables),"") -> 44050 | M142: =+IF(C142="","",IF(I142="","SIN RESPUESTA",(IF(I142<=L142,"A TIEMPO","FUERA DE TIEMPO")))) -> A TIEMPO | N142: =IF(I142="","",NETWORKDAYS(C142+1,I142,DiasNOLaborables)) -> 8 | R142: 20
A143: 132 | B143: 20200709151234 | C143: 44021 | D143: WEB (MÓDULO DE SOLICITUD DE INFORMACIÓN HIDROMETEOROLÓGICA) | E143: SOLICITUD DE INFORMACIÓN Y DOCUMENTOS | F143: SOLICITUD DE INFORMACIÓN HIDROMETEOROLÓGICA | G143: NO | H143: GRUPO DE SERVICIO AL CIUDADANO | I143: 44034 | J143: CORREO ELECTRÓNICO | L143: =IFERROR(WORKDAY(C143,R143,DiasNOLaborables),"") -> 44050 | M143: =+IF(C143="","",IF(I143="","SIN RESPUESTA",(IF(I143<=L143,"A TIEMPO","FUERA DE TIEMPO")))) -> A TIEMPO | N143: =IF(I143="","",NETWORKDAYS(C143+1,I143,DiasNOLaborables)) -> 8 | R143: 20
A144: 133 | B144: 20200709151139 | C144: 44021 | D144: WEB (MÓDULO DE SOLICITUD DE INFORMACIÓN HIDROMETEOROLÓGICA) | E144: SOLICITUD DE INFORMACIÓN Y DOCUMENTOS | F144: SOLICITUD DE INFORMACIÓN HIDROMETEOROLÓGICA | G144: NO | H144: GRUPO DE SERVICIO AL CIUDADANO | I144: 44034 | J144: CORREO ELECTRÓNICO | L144: =IFERROR(WORKDAY(C144,R144,DiasNOLaborables),"") -> 44050 | M144: =+IF(C144="","",IF(I144="","SIN RESPUESTA",(IF(I144<=L144,"A TIEMPO","FUERA DE TIEMPO")))) -> A TIEMPO | N144: =IF(I144="","",NETWORKDAYS(C144+1,I144,DiasNOLaborables)) -> 8 | R144: 20
A145: 134 | B145: 20200709151033 | C145: 44021 | D145: WEB (MÓDULO DE SOLICITUD DE INFORMACIÓN HIDROMETEOROLÓGICA) | E145: SOLICITUD DE INFORMACIÓN Y DOCUMENTOS | F145: SOLICITUD DE INFORMACIÓN HIDROMETEOROLÓGICA | G145: NO | H145: GRUPO DE SERVICIO AL CIUDADANO | I145: 44034 | J145: CORREO ELECTRÓNICO | L145: =IFERROR(WORKDAY(C145,R145,DiasNOLaborables),"") -> 44050 | M145: =+IF(C145="","",IF(I145="","SIN RESPUESTA",(IF(I145<=L145,"A TIEMPO","FUERA DE TIEMPO")))) -> A TIEMPO | N145: =IF(I145="","",NETWORKDAYS(C145+1,I145,DiasNOLaborables)) -> 8 | R145: 20
A146: 135 | B146: 20200709150935 | C146: 44021 | D146: WEB (MÓDULO DE SOLICITUD DE INFORMACIÓN HIDROMETEOROLÓGICA) | E146: SOLICITUD DE INFORMACIÓN Y DOCUMENTOS | F146: SOLICITUD DE INFORMACIÓN HIDROMETEOROLÓGICA | G146: NO | H146: GRUPO DE SERVICIO AL CIUDADANO | I146: 44034 | J146: CORREO ELECTRÓNICO | L146: =IFERROR(WORKDAY(C146,R146,DiasNOLaborables),"") -> 44050 | M146: =+IF(C146="","",IF(I146="","SIN RESPUESTA",(IF(I146<=L146,"A TIEMPO","FUERA DE TIEMPO")))) -> A TIEMPO | N146: =IF(I146="","",NETWORKDAYS(C146+1,I146,DiasNOLaborables)) -> 8 | R146: 20
A147: 136 | B147: 20200709150737 | C147: 44021 | D147: WEB (MÓDULO DE SOLICITUD DE INFORMACIÓN HIDROMETEOROLÓGICA) | E147: SOLICITUD DE INFORMACIÓN Y DOCUMENTOS | F147: SOLICITUD DE INFORMACIÓN HIDROMETEOROLÓGICA | G147: NO | H147: GRUPO DE SERVICIO AL CIUDADANO | I147: 44034 | J147: CORREO ELECTRÓNICO | L147: =IFERROR(WORKDAY(C147,R147,DiasNOLaborables),"") -> 44050 | M147: =+IF(C147="","",IF(I147="","SIN RESPUESTA",(IF(I147<=L147,"A TIEMPO","FUERA DE TIEMPO")))) -> A TIEMPO | N147: =IF(I147="","",NETWORKDAYS(C147+1,I147,DiasNOLaborables)) -> 8 | R147: 20
A148: 137 | B148: 20200709133908 | C148: 44021 | D148: WEB (MÓDULO DE SOLICITUD DE INFORMACIÓN HIDROMETEOROLÓGICA) | E148: SOLICITUD DE INFORMACIÓN Y DOCUMENTOS | F148: SOLICITUD DE INFORMACIÓN HIDROMETEOROLÓGICA | G148: NO | H148: GRUPO DE SERVICIO AL CIUDADANO | I148: 44034 | J148: CORREO ELECTRÓNICO | L148: =IFERROR(WORKDAY(C148,R148,DiasNOLaborables),"") -> 44050 | M148: =+IF(C148="","",IF(I148="","SIN RESPUESTA",(IF(I148<=L148,"A TIEMPO","FUERA DE TIEMPO")))) -> A TIEMPO | N148: =IF(I148="","",NETWORKDAYS(C148+1,I148,DiasNOLaborables)) -> 8 | R148: 20
A149: 138 | B149: 20200709133605 | C149: 44021 | D149: WEB (MÓDULO DE SOLICITUD DE INFORMACIÓN HIDROMETEOROLÓGICA) | E149: SOLICITUD DE INFORMACIÓN Y DOCUMENTOS | F149: SOLICITUD DE INFORMACIÓN HIDROMETEOROLÓGICA | G149: NO | H149: GRUPO DE SERVICIO AL CIUDADANO | I149: 44034 | J149: CORREO ELECTRÓNICO | L149: =IFERROR(WORKDAY(C149,R149,DiasNOLaborables),"") -> 44050 | M149: =+IF(C149="","",IF(I149="","SIN RESPUESTA",(IF(I149<=L149,"A TIEMPO","FUERA DE TIEMPO")))) -> A TIEMPO | N149: =IF(I149="","",NETWORKDAYS(C149+1,I149,DiasNOLaborables)) -> 8 | R149: 20
A150: 139 | B150: 20200709133524 | C150: 44021 | D150: WEB (MÓDULO DE SOLICITUD DE INFORMACIÓN HIDROMETEOROLÓGICA) | E150: SOLICITUD DE INFORMACIÓN Y DOCUMENTOS | F150: SOLICITUD DE INFORMACIÓN HIDROMETEOROLÓGICA | G150: NO | H150: GRUPO DE SERVICIO AL CIUDADANO | I150: 44034 | J150: CORREO ELECTRÓNICO | L150: =IFERROR(WORKDAY(C150,R150,DiasNOLaborables),"") -> 44050 | M150: =+IF(C150="","",IF(I150="","SIN RESPUESTA",(IF(I150<=L150,"A TIEMPO","FUERA DE TIEMPO")))) -> A TIEMPO | N150: =IF(I150="","",NETWORKDAYS(C150+1,I150,DiasNOLaborables)) -> 8 | R150: 20
A151: 140 | B151: 20200709133421 | C151: 44021 | D151: WEB (MÓDULO DE SOLICITUD DE INFORMACIÓN HIDROMETEOROLÓGICA) | E151: SOLICITUD DE INFORMACIÓN Y DOCUMENTOS | F151: SOLICITUD DE INFORMACIÓN HIDROMETEOROLÓGICA | G151: NO | H151: GRUPO DE SERVICIO AL CIUDADANO | I151: 44034 | J151: CORREO ELECTRÓNICO | L151: =IFERROR(WORKDAY(C151,R151,DiasNOLaborables),"") -> 44050 | M151: =+IF(C151="","",IF(I151="","SIN RESPUESTA",(IF(I151<=L151,"A TIEMPO","FUERA DE TIEMPO")))) -> A TIEMPO | N151: =IF(I151="","",NETWORKDAYS(C151+1,I151,DiasNOLaborables)) -> 8 | R151: 20
A152: 141 | B152: 20200709113331 | C152: 44021 | D152: WEB (MÓDULO DE SOLICITUD DE INFORMACIÓN HIDROMETEOROLÓGICA) | E152: SOLICITUD DE INFORMACIÓN Y DOCUMENTOS | F152: SOLICITUD DE INFORMACIÓN HIDROMETEOROLÓGICA | G152: NO | H152: GRUPO DE SERVICIO AL CIUDADANO | I152: 44034 | J152: CORREO ELECTRÓNICO | L152: =IFERROR(WORKDAY(C152,R152,DiasNOLaborables),"") -> 44050 | M152: =+IF(C152="","",IF(I152="","SIN RESPUESTA",(IF(I152<=L152,"A TIEMPO","FUERA DE TIEMPO")))) -> A TIEMPO | N152: =IF(I152="","",NETWORKDAYS(C152+1,I152,DiasNOLaborables)) -> 8 | R152: 20
A153: 142 | B153: 20200709105155 | C153: 44021 | D153: WEB (MÓDULO DE SOLICITUD DE INFORMACIÓN HIDROMETEOROLÓGICA) | E153: SOLICITUD DE INFORMACIÓN Y DOCUMENTOS | F153: SOLICITUD DE INFORMACIÓN HIDROMETEOROLÓGICA | G153: NO | H153: GRUPO DE SERVICIO AL CIUDADANO | I153: 44034 | J153: CORREO ELECTRÓNICO | L153: =IFERROR(WORKDAY(C153,R153,DiasNOLaborables),"") -> 44050 | M153: =+IF(C153="","",IF(I153="","SIN RESPUESTA",(IF(I153<=L153,"A TIEMPO","FUERA DE TIEMPO")))) -> A TIEMPO | N153: =IF(I153="","",NETWORKDAYS(C153+1,I153,DiasNOLaborables)) -> 8 | R153: 20
A154: 143 | B154: 20200709084227 | C154: 44021 | D154: WEB (MÓDULO DE SOLICITUD DE INFORMACIÓN HIDROMETEOROLÓGICA) | E154: SOLICITUD DE INFORMACIÓN Y DOCUMENTOS | F154: SOLICITUD DE INFORMACIÓN HIDROMETEOROLÓGICA | G154: NO | H154: GRUPO DE SERVICIO AL CIUDADANO | I154: 44034 | J154: CORREO ELECTRÓNICO | L154: =IFERROR(WORKDAY(C154,R154,DiasNOLaborables),"") -> 44050 | M154: =+IF(C154="","",IF(I154="","SIN RESPUESTA",(IF(I154<=L154,"A TIEMPO","FUERA DE TIEMPO")))) -> A TIEMPO | N154: =IF(I154="","",NETWORKDAYS(C154+1,I154,DiasNOLaborables)) -> 8 | R154: 20
A155: 144 | B155: 20200714195411 | C155: 44026 | D155: WEB (MÓDULO DE SOLICITUD DE INFORMACIÓN HIDROMETEOROLÓGICA) | E155: SOLICITUD DE INFORMACIÓN Y DOCUMENTOS | F155: SOLICITUD DE INFORMACIÓN HIDROMETEOROLÓGICA | G155: NO | H155: GRUPO DE SERVICIO AL CIUDADANO | I155: 44041 | J155: CORREO ELECTRÓNICO | L155: =IFERROR(WORKDAY(C155,R155,DiasNOLaborables),"") -> 44055 | M155: =+IF(C155="","",IF(I155="","SIN RESPUESTA",(IF(I155<=L155,"A TIEMPO","FUERA DE TIEMPO")))) -> A TIEMPO | N155: =IF(I155="","",NETWORKDAYS(C155+1,I155,DiasNOLaborables)) -> 10 | R155: 20
A156: 145 | B156: 20200714193300 | C156: 44026 | D156: WEB (MÓDULO DE SOLICITUD DE INFORMACIÓN HIDROMETEOROLÓGICA) | E156: SOLICITUD DE INFORMACIÓN Y DOCUMENTOS | F156: SOLICITUD DE INFORMACIÓN HIDROMETEOROLÓGICA | G156: NO | H156: GRUPO DE SERVICIO AL CIUDADANO | I156: 44041 | J156: CORREO ELECTRÓNICO | L156: =IFERROR(WORKDAY(C156,R156,DiasNOLaborables),"") -> 44055 | M156: =+IF(C156="","",IF(I156="","SIN RESPUESTA",(IF(I156<=L156,"A TIEMPO","FUERA DE TIEMPO")))) -> A TIEMPO | N156: =IF(I156="","",NETWORKDAYS(C156+1,I156,DiasNOLaborables)) -> 10 | R156: 20
A157: 146 | B157: 20200714175037 | C157: 44026 | D157: WEB (MÓDULO DE SOLICITUD DE INFORMACIÓN HIDROMETEOROLÓGICA) | E157: SOLICITUD DE INFORMACIÓN Y DOCUMENTOS | F157: SOLICITUD DE INFORMACIÓN HIDROMETEOROLÓGICA | G157: NO | H157: GRUPO DE SERVICIO AL CIUDADANO | I157: 44041 | J157: CORREO ELECTRÓNICO | L157: =IFERROR(WORKDAY(C157,R157,DiasNOLaborables),"") -> 44055 | M157: =+IF(C157="","",IF(I157="","SIN RESPUESTA",(IF(I157<=L157,"A TIEMPO","FUERA DE TIEMPO")))) -> A TIEMPO | N157: =IF(I157="","",NETWORKDAYS(C157+1,I157,DiasNOLaborables)) -> 10 | R157: 20
A158: 147 | B158: 20200714174341 | C158: 44026 | D158: WEB (MÓDULO DE SOLICITUD DE INFORMACIÓN HIDROMETEOROLÓGICA) | E158: SOLICITUD DE INFORMACIÓN Y DOCUMENTOS | F158: SOLICITUD DE INFORMACIÓN HIDROMETEOROLÓGICA | G158: NO | H158: GRUPO DE SERVICIO AL CIUDADANO | I158: 44041 | J158: CORREO ELECTRÓNICO | L158: =IFERROR(WORKDAY(C158,R158,DiasNOLaborables),"") -> 44055 | M158: =+IF(C158="","",IF(I158="","SIN RESPUESTA",(IF(I158<=L158,"A TIEMPO","FUERA DE TIEMPO")))) -> A TIEMPO | N158: =IF(I158="","",NETWORKDAYS(C158+1,I158,DiasNOLaborables)) -> 10 | R158: 20
A159: 148 | B159: 20200714173302 | C159: 44026 | D159: WEB (MÓDULO DE SOLICITUD DE INFORMACIÓN HIDROMETEOROLÓGICA) | E159: SOLICITUD DE INFORMACIÓN Y DOCUMENTOS | F159: SOLICITUD DE INFORMACIÓN HIDROMETEOROLÓGICA | G159: NO | H159: GRUPO DE SERVICIO AL CIUDADANO | I159: 44041 | J159: CORREO ELECTRÓNICO | L159: =IFERROR(WORKDAY(C159,R159,DiasNOLaborables),"") -> 44055 | M159: =+IF(C159="","",IF(I159="","SIN RESPUESTA",(IF(I159<=L159,"A TIEMPO","FUERA DE TIEMPO")))) -> A TIEMPO | N159: =IF(I159="","",NETWORKDAYS(C159+1,I159,DiasNOLaborables)) -> 10 | R159: 20
A160: 149 | B160: 20200714173034 | C160: 44026 | D160: WEB (MÓDULO DE SOLICITUD DE INFORMACIÓN HIDROMETEOROLÓGICA) | E160: SOLICITUD DE INFORMACIÓN Y DOCUMENTOS | F160: SOLICITUD DE INFORMACIÓN HIDROMETEOROLÓGICA | G160: NO | H160: GRUPO DE SERVICIO AL CIUDADANO | I160: 44041 | J160: CORREO ELECTRÓNICO | L160: =IFERROR(WORKDAY(C160,R160,DiasNOLaborables),"") -> 44055 | M160: =+IF(C160="","",IF(I160="","SIN RESPUESTA",(IF(I160<=L160,"A TIEMPO","FUERA DE TIEMPO")))) -> A TIEMPO | N160: =IF(I160="","",NETWORKDAYS(C160+1,I160,DiasNOLaborables)) -> 10 | R160: 20
A161: 150 | B161: 20200714172810 | C161: 44026 | D161: WEB (MÓDULO DE SOLICITUD DE INFORMACIÓN HIDROMETEOROLÓGICA) | E161: SOLICITUD DE INFORMACIÓN Y DOCUMENTOS | F161: SOLICITUD DE INFORMACIÓN HIDROMETEOROLÓGICA | G161: NO | H161: GRUPO DE SERVICIO AL CIUDADANO | I161: 44041 | J161: CORREO ELECTRÓNICO | L161: =IFERROR(WORKDAY(C161,R161,DiasNOLaborables),"") -> 44055 | M161: =+IF(C161="","",IF(I161="","SIN RESPUESTA",(IF(I161<=L161,"A TIEMPO","FUERA DE TIEMPO")))) -> A TIEMPO | N161: =IF(I161="","",NETWORKDAYS(C161+1,I161,DiasNOLaborables)) -> 10 | R161: 20
A162: 151 | B162: 20200714172506 | C162: 44026 | D162: WEB (MÓDULO DE SOLICITUD DE INFORMACIÓN HIDROMETEOROLÓGICA) | E162: SOLICITUD DE INFORMACIÓN Y DOCUMENTOS | F162: SOLICITUD DE INFORMACIÓN HIDROMETEOROLÓGICA | G162: NO | H162: GRUPO DE SERVICIO AL CIUDADANO | I162: 44041 | J162: CORREO ELECTRÓNICO | L162: =IFERROR(WORKDAY(C162,R162,DiasNOLaborables),"") -> 44055 | M162: =+IF(C162="","",IF(I162="","SIN RESPUESTA",(IF(I162<=L162,"A TIEMPO","FUERA DE TIEMPO")))) -> A TIEMPO | N162: =IF(I162="","",NETWORKDAYS(C162+1,I162,DiasNOLaborables)) -> 10 | R162: 20
A163: 152 | B163: 20200714172056 | C163: 44026 | D163: WEB (MÓDULO DE SOLICITUD DE INFORMACIÓN HIDROMETEOROLÓGICA) | E163: SOLICITUD DE INFORMACIÓN Y DOCUMENTOS | F163: SOLICITUD DE INFORMACIÓN HIDROMETEOROLÓGICA | G163: NO | H163: GRUPO DE SERVICIO AL CIUDADANO | I163: 44041 | J163: CORREO ELECTRÓNICO | L163: =IFERROR(WORKDAY(C163,R163,DiasNOLaborables),"") -> 44055 | M163: =+IF(C163="","",IF(I163="","SIN RESPUESTA",(IF(I163<=L163,"A TIEMPO","FUERA DE TIEMPO")))) -> A TIEMPO | N163: =IF(I163="","",NETWORKDAYS(C163+1,I163,DiasNOLaborables)) -> 10 | R163: 20
A164: 153 | B164: 20200714171348 | C164: 44026 | D164: WEB (MÓDULO DE SOLICITUD DE INFORMACIÓN HIDROMETEOROLÓGICA) | E164: SOLICITUD DE INFORMACIÓN Y DOCUMENTOS | F164: SOLICITUD DE INFORMACIÓN HIDROMETEOROLÓGICA | G164: NO | H164: GRUPO DE SERVICIO AL CIUDADANO | I164: 44041 | J164: CORREO ELECTRÓNICO | L164: =IFERROR(WORKDAY(C164,R164,DiasNOLaborables),"") -> 44055 | M164: =+IF(C164="","",IF(I164="","SIN RESPUESTA",(IF(I164<=L164,"A TIEMPO","FUERA DE TIEMPO")))) -> A TIEMPO | N164: =IF(I164="","",NETWORKDAYS(C164+1,I164,DiasNOLaborables)) -> 10 | R164: 20
A165: 154 | B165: 20200714170123 | C165: 44026 | D165: WEB (MÓDULO DE SOLICITUD DE INFORMACIÓN HIDROMETEOROLÓGICA) | E165: SOLICITUD DE INFORMACIÓN Y DOCUMENTOS | F165: SOLICITUD DE INFORMACIÓN HIDROMETEOROLÓGICA | G165: NO | H165: GRUPO DE SERVICIO AL CIUDADANO | I165: 44041 | J165: CORREO ELECTRÓNICO | L165: =IFERROR(WORKDAY(C165,R165,DiasNOLaborables),"") -> 44055 | M165: =+IF(C165="","",IF(I165="","SIN RESPUESTA",(IF(I165<=L165,"A TIEMPO","FUERA DE TIEMPO")))) -> A TIEMPO | N165: =IF(I165="","",NETWORKDAYS(C165+1,I165,DiasNOLaborables)) -> 10 | R165: =IFERROR(VLOOKUP(E165,$Z$50:$AA$63,2),"") -> 20
A166: 155 | B166: 20200714163143 | C166: 44026 | D166: WEB (MÓDULO DE SOLICITUD DE INFORMACIÓN HIDROMETEOROLÓGICA) | E166: SOLICITUD DE INFORMACIÓN Y DOCUMENTOS | F166: SOLICITUD DE INFORMACIÓN HIDROMETEOROLÓGICA | G166: NO | H166: GRUPO DE SERVICIO AL CIUDADANO | I166: 44041 | J166: CORREO ELECTRÓNICO | L166: =IFERROR(WORKDAY(C166,R166,DiasNOLaborables),"") -> 44055 | M166: =+IF(C166="","",IF(I166="","SIN RESPUESTA",(IF(I166<=L166,"A TIEMPO","FUERA DE TIEMPO")))) -> A TIEMPO | N166: =IF(I166="","",NETWORKDAYS(C166+1,I166,DiasNOLaborables)) -> 10 | R166: 20
A167: 156 | B167: 20200714163139 | C167: 44026 | D167: WEB (MÓDULO DE SOLICITUD DE INFORMACIÓN HIDROMETEOROLÓGICA) | E167: SOLICITUD DE INFORMACIÓN Y DOCUMENTOS | F167: SOLICITUD DE INFORMACIÓN HIDROMETEOROLÓGICA | G167: NO | H167: GRUPO DE SERVICIO AL CIUDADANO | I167: 44041 | J167: CORREO ELECTRÓNICO | L167: =IFERROR(WORKDAY(C167,R167,DiasNOLaborables),"") -> 44055 | M167: =+IF(C167="","",IF(I167="","SIN RESPUESTA",(IF(I167<=L167,"A TIEMPO","FUERA DE TIEMPO")))) -> A TIEMPO | N167: =IF(I167="","",NETWORKDAYS(C167+1,I167,DiasNOLaborables)) -> 10 | R167: 20
A168: 157 | B168: 20200714161120 | C168: 44026 | D168: WEB (MÓDULO DE SOLICITUD DE INFORMACIÓN HIDROMETEOROLÓGICA) | E168: SOLICITUD DE INFORMACIÓN Y DOCUMENTOS | F168: SOLICITUD DE INFORMACIÓN HIDROMETEOROLÓGICA | G168: NO | H168: GRUPO DE SERVICIO AL CIUDADANO | I168: 44041 | J168: CORREO ELECTRÓNICO | L168: =IFERROR(WORKDAY(C168,R168,DiasNOLaborables),"") -> 44055 | M168: =+IF(C168="","",IF(I168="","SIN RESPUESTA",(IF(I168<=L168,"A TIEMPO","FUERA DE TIEMPO")))) -> A TIEMPO | N168: =IF(I168="","",NETWORKDAYS(C168+1,I168,DiasNOLaborables)) -> 10 | R168: 20
A169: 158 | B169: 20200714125307 | C169: 44026 | D169: WEB (MÓDULO DE SOLICITUD DE INFORMACIÓN HIDROMETEOROLÓGICA) | E169: SOLICITUD DE INFORMACIÓN Y DOCUMENTOS | F169: SOLICITUD DE INFORMACIÓN HIDROMETEOROLÓGICA | G169: NO | H169: GRUPO DE SERVICIO AL CIUDADANO | I169: 44041 | J169: CORREO ELECTRÓNICO | L169: =IFERROR(WORKDAY(C169,R169,DiasNOLaborables),"") -> 44055 | M169: =+IF(C169="","",IF(I169="","SIN RESPUESTA",(IF(I169<=L169,"A TIEMPO","FUERA DE TIEMPO")))) -> A TIEMPO | N169: =IF(I169="","",NETWORKDAYS(C169+1,I169,DiasNOLaborables)) -> 10 | O169: =IF(NETWORKDAYS(L169+1,I169,DiasNOLaborables)<=0,"",NETWORKDAYS(L169+1,I169,DiasNOLaborables)) ->  | R169: 20
A170: 159 | B170: 20200714111844 | C170: 44026 | D170: WEB (MÓDULO DE SOLICITUD DE INFORMACIÓN HIDROMETEOROLÓGICA) | E170: SOLICITUD DE INFORMACIÓN Y DOCUMENTOS | F170: SOLICITUD DE INFORMACIÓN HIDROMETEOROLÓGICA | G170: NO | H170: GRUPO DE SERVICIO AL CIUDADANO | I170: 44041 | J170: CORREO ELECTRÓNICO | L170: =IFERROR(WORKDAY(C170,R170,DiasNOLaborables),"") -> 44055 | M170: =+IF(C170="","",IF(I170="","SIN RESPUESTA",(IF(I170<=L170,"A TIEMPO","FUERA DE TIEMPO")))) -> A TIEMPO | N170: =IF(I170="","",NETWORKDAYS(C170+1,I170,DiasNOLaborables)) -> 10 | R170: 20
A171: 160 | B171: 20200714110833 | C171: 44026 | D171: WEB (MÓDULO DE SOLICITUD DE INFORMACIÓN HIDROMETEOROLÓGICA) | E171: SOLICITUD DE INFORMACIÓN Y DOCUMENTOS | F171: SOLICITUD DE INFORMACIÓN HIDROMETEOROLÓGICA | G171: NO | H171: GRUPO DE SERVICIO AL CIUDADANO | I171: 44041 | J171: CORREO ELECTRÓNICO | L171: =IFERROR(WORKDAY(C171,R171,DiasNOLaborables),"") -> 44055 | M171: =+IF(C171="","",IF(I171="","SIN RESPUESTA",(IF(I171<=L171,"A TIEMPO","FUERA DE TIEMPO")))) -> A TIEMPO | N171: =IF(I171="","",NETWORKDAYS(C171+1,I171,DiasNOLaborables)) -> 10 | R171: 20
A172: 161 | B172: 20200714110359 | C172: 44026 | D172: WEB (MÓDULO DE SOLICITUD DE INFORMACIÓN HIDROMETEOROLÓGICA) | E172: SOLICITUD DE INFORMACIÓN Y DOCUMENTOS | F172: SOLICITUD DE INFORMACIÓN HIDROMETEOROLÓGICA | G172: NO | H172: GRUPO DE SERVICIO AL CIUDADANO | I172: 44041 | J172: CORREO ELECTRÓNICO | L172: =IFERROR(WORKDAY(C172,R172,DiasNOLaborables),"") -> 44055 | M172: =+IF(C172="","",IF(I172="","SIN RESPUESTA",(IF(I172<=L172,"A TIEMPO","FUERA DE TIEMPO")))) -> A TIEMPO | N172: =IF(I172="","",NETWORKDAYS(C172+1,I172,DiasNOLaborables)) -> 10 | R172: 20
A173: 162 | B173: 20200714110354 | C173: 44026 | D173: WEB (MÓDULO DE SOLICITUD DE INFORMACIÓN HIDROMETEOROLÓGICA) | E173: SOLICITUD DE INFORMACIÓN Y DOCUMENTOS | F173: SOLICITUD DE INFORMACIÓN HIDROMETEOROLÓGICA | G173: NO | H173: GRUPO DE SERVICIO AL CIUDADANO | I173: 44041 | J173: CORREO ELECTRÓNICO | L173: =IFERROR(WORKDAY(C173,R173,DiasNOLaborables),"") -> 44055 | M173: =+IF(C173="","",IF(I173="","SIN RESPUESTA",(IF(I173<=L173,"A TIEMPO","FUERA DE TIEMPO")))) -> A TIEMPO | N173: =IF(I173="","",NETWORKDAYS(C173+1,I173,DiasNOLaborables)) -> 10 | R173: 20
A174: 163 | B174: 20200714110254 | C174: 44026 | D174: WEB (MÓDULO DE SOLICITUD DE INFORMACIÓN HIDROMETEOROLÓGICA) | E174: SOLICITUD DE INFORMACIÓN Y DOCUMENTOS | F174: SOLICITUD DE INFORMACIÓN HIDROMETEOROLÓGICA | G174: NO | H174: GRUPO DE SERVICIO AL CIUDADANO | I174: 44041 | J174: CORREO ELECTRÓNICO | L174: =IFERROR(WORKDAY(C174,R174,DiasNOLaborables),"") -> 44055 | M174: =+IF(C174="","",IF(I174="","SIN RESPUESTA",(IF(I174<=L174,"A TIEMPO","FUERA DE TIEMPO")))) -> A TIEMPO | N174: =IF(I174="","",NETWORKDAYS(C174+1,I174,DiasNOLaborables)) -> 10 | R174: 20
A175: 164 | B175: 20200714105746 | C175: 44026 | D175: WEB (MÓDULO DE SOLICITUD DE INFORMACIÓN HIDROMETEOROLÓGICA) | E175: SOLICITUD DE INFORMACIÓN Y DOCUMENTOS | F175: SOLICITUD DE INFORMACIÓN HIDROMETEOROLÓGICA | G175: NO | H175: GRUPO DE SERVICIO AL CIUDADANO | I175: 44041 | J175: CORREO ELECTRÓNICO | L175: =IFERROR(WORKDAY(C175,R175,DiasNOLaborables),"") -> 44055 | M175: =+IF(C175="","",IF(I175="","SIN RESPUESTA",(IF(I175<=L175,"A TIEMPO","FUERA DE TIEMPO")))) -> A TIEMPO | N175: =IF(I175="","",NETWORKDAYS(C175+1,I175,DiasNOLaborables)) -> 10 | R175: 20
A176: 165 | B176: 20200714105246 | C176: 44026 | D176: WEB (MÓDULO DE SOLICITUD DE INFORMACIÓN HIDROMETEOROLÓGICA) | E176: SOLICITUD DE INFORMACIÓN Y DOCUMENTOS | F176: SOLICITUD DE INFORMACIÓN HIDROMETEOROLÓGICA | G176: NO | H176: GRUPO DE SERVICIO AL CIUDADANO | I176: 44041 | J176: CORREO ELECTRÓNICO | L176: =IFERROR(WORKDAY(C176,R176,DiasNOLaborables),"") -> 44055 | M176: =+IF(C176="","",IF(I176="","SIN RESPUESTA",(IF(I176<=L176,"A TIEMPO","FUERA DE TIEMPO")))) -> A TIEMPO | N176: =IF(I176="","",NETWORKDAYS(C176+1,I176,DiasNOLaborables)) -> 10 | R176: 20
A177: 166 | B177: 20200714104826 | C177: 44026 | D177: WEB (MÓDULO DE SOLICITUD DE INFORMACIÓN HIDROMETEOROLÓGICA) | E177: SOLICITUD DE INFORMACIÓN Y DOCUMENTOS | F177: SOLICITUD DE INFORMACIÓN HIDROMETEOROLÓGICA | G177: NO | H177: GRUPO DE SERVICIO AL CIUDADANO | I177: 44041 | J177: CORREO ELECTRÓNICO | L177: =IFERROR(WORKDAY(C177,R177,DiasNOLaborables),"") -> 44055 | M177: =+IF(C177="","",IF(I177="","SIN RESPUESTA",(IF(I177<=L177,"A TIEMPO","FUERA DE TIEMPO")))) -> A TIEMPO | N177: =IF(I177="","",NETWORKDAYS(C177+1,I177,DiasNOLaborables)) -> 10 | R177: 20
A178: =IF(B176<>"",A177+1,"") -> 167 | B178: 20200714104213 | C178: 44026 | D178: WEB (MÓDULO DE SOLICITUD DE INFORMACIÓN HIDROMETEOROLÓGICA) | E178: SOLICITUD DE INFORMACIÓN Y DOCUMENTOS | F178: SOLICITUD DE INFORMACIÓN HIDROMETEOROLÓGICA | G178: NO | H178: GRUPO DE SERVICIO AL CIUDADANO | I178: 44041 | J178: CORREO ELECTRÓNICO | L178: =IFERROR(WORKDAY(C178,R178,DiasNOLaborables),"") -> 44055 | M178: =+IF(C178="","",IF(I178="","SIN RESPUESTA",(IF(I178<=L178,"A TIEMPO","FUERA DE TIEMPO")))) -> A TIEMPO | N178: =IF(I178="","",NETWORKDAYS(C178+1,I178,DiasNOLaborables)) -> 10 | R178: 20
A179: 168 | B179: 20200714065231 | C179: 44026 | D179: WEB (MÓDULO DE SOLICITUD DE INFORMACIÓN HIDROMETEOROLÓGICA) | E179: SOLICITUD DE INFORMACIÓN Y DOCUMENTOS | F179: SOLICITUD DE INFORMACIÓN HIDROMETEOROLÓGICA | G179: NO | H179: GRUPO DE SERVICIO AL CIUDADANO | I179: 44041 | J179: CORREO ELECTRÓNICO | L179: =IFERROR(WORKDAY(C179,R179,DiasNOLaborables),"") -> 44055 | M179: =+IF(C179="","",IF(I179="","SIN RESPUESTA",(IF(I179<=L179,"A TIEMPO","FUERA DE TIEMPO")))) -> A TIEMPO | N179: =IF(I179="","",NETWORKDAYS(C179+1,I179,DiasNOLaborables)) -> 10 | R179: 20
A180: 169 | B180: 20209050060302 | C180: 44034 | D180: MODULO CONTACTENOS | E180: SOLICITUD DE INFORMACIÓN Y DOCUMENTOS | F180: SOLICITUD DE INFORMACIÓN HIDROMETEOROLÓGICA | G180: NO | H180: GRUPO DE SERVICIO AL CIUDADANO | I180: 44039 | J180: CORREO ELECTRÓNICO | L180: =IFERROR(WORKDAY(C180,R180,DiasNOLaborables),"") -> 44063 | M180: =+IF(C180="","",IF(I180="","SIN RESPUESTA",(IF(I180<=L180,"A TIEMPO","FUERA DE TIEMPO")))) -> A TIEMPO | N180: =IF(I180="","",NETWORKDAYS(C180+1,I180,DiasNOLaborables)) -> 3 | R180: 20
A181: 170 | B181: 20209050060412 | C181: 44034 | D181: MODULO CONTACTENOS | E181: SOLICITUD DE INFORMACIÓN Y DOCUMENTOS | F181: SOLICITUD DE INFORMACIÓN HIDROMETEOROLÓGICA | G181: NO | H181: GRUPO DE SERVICIO AL CIUDADANO | I181: 44039 | J181: CORREO ELECTRÓNICO | L181: =IFERROR(WORKDAY(C181,R181,DiasNOLaborables),"") -> 44063 | M181: =+IF(C181="","",IF(I181="","SIN RESPUESTA",(IF(I181<=L181,"A TIEMPO","FUERA DE TIEMPO")))) -> A TIEMPO | N181: =IF(I181="","",NETWORKDAYS(C181+1,I181,DiasNOLaborables)) -> 3 | R181: 20
A182: 171 | B182: 20209050060502 | C182: 44034 | D182: MODULO CONTACTENOS | E182: SOLICITUD DE INFORMACIÓN Y DOCUMENTOS | F182: SOLICITUD DE INFORMACIÓN HIDROMETEOROLÓGICA | G182: NO | H182: GRUPO DE SERVICIO AL CIUDADANO | I182: 44039 | J182: CORREO ELECTRÓNICO | L182: =IFERROR(WORKDAY(C182,R182,DiasNOLaborables),"") -> 44063 | M182: =+IF(C182="","",IF(I182="","SIN RESPUESTA",(IF(I182<=L182,"A TIEMPO","FUERA DE TIEMPO")))) -> A TIEMPO | N182: =IF(I182="","",NETWORKDAYS(C182+1,I182,DiasNOLaborables)) -> 3 | R182: 20
A183: 172 | B183: 20209050060512 | C183: 44034 | D183: MODULO CONTACTENOS | E183: SOLICITUD DE INFORMACIÓN Y DOCUMENTOS | F183: SOLICITUD DE INFORMACIÓN HIDROMETEOROLÓGICA | G183: NO | H183: GRUPO DE SERVICIO AL CIUDADANO | I183: 44039 | J183: CORREO ELECTRÓNICO | L183: =IFERROR(WORKDAY(C183,R183,DiasNOLaborables),"") -> 44063 | M183: =+IF(C183="","",IF(I183="","SIN RESPUESTA",(IF(I183<=L183,"A TIEMPO","FUERA DE TIEMPO")))) -> A TIEMPO | N183: =IF(I183="","",NETWORKDAYS(C183+1,I183,DiasNOLaborables)) -> 3 | R183: 20
A184: 173 | B184: 20209050060522 | C184: 44034 | D184: MODULO CONTACTENOS | E184: SOLICITUD DE INFORMACIÓN Y DOCUMENTOS | F184: SOLICITUD DE INFORMACIÓN HIDROMETEOROLÓGICA | G184: NO | H184: GRUPO DE SERVICIO AL CIUDADANO | I184: 44039 | J184: CORREO ELECTRÓNICO | L184: =IFERROR(WORKDAY(C184,R184,DiasNOLaborables),"") -> 44063 | M184: =+IF(C184="","",IF(I184="","SIN RESPUESTA",(IF(I184<=L184,"A TIEMPO","FUERA DE TIEMPO")))) -> A TIEMPO | N184: =IF(I184="","",NETWORKDAYS(C184+1,I184,DiasNOLaborables)) -> 3 | R184: 20
A185: 174 | B185: 20209050060532 | C185: 44034 | D185: MODULO CONTACTENOS | E185: SOLICITUD DE INFORMACIÓN Y DOCUMENTOS | F185: SOLICITUD DE INFORMACIÓN HIDROMETEOROLÓGICA | G185: NO | H185: GRUPO DE SERVICIO AL CIUDADANO | I185: 44039 | J185: CORREO ELECTRÓNICO | L185: =IFERROR(WORKDAY(C185,R185,DiasNOLaborables),"") -> 44063 | M185: =+IF(C185="","",IF(I185="","SIN RESPUESTA",(IF(I185<=L185,"A TIEMPO","FUERA DE TIEMPO")))) -> A TIEMPO | N185: =IF(I185="","",NETWORKDAYS(C185+1,I185,DiasNOLaborables)) -> 3 | R185: 20
A186: 175 | B186: 20209050060552 | C186: 44034 | D186: MODULO CONTACTENOS | E186: SOLICITUD DE INFORMACIÓN Y DOCUMENTOS | F186: SOLICITUD DE INFORMACIÓN HIDROMETEOROLÓGICA | G186: NO | H186: GRUPO DE SERVICIO AL CIUDADANO | I186: 44039 | J186: CORREO ELECTRÓNICO | L186: =IFERROR(WORKDAY(C186,R186,DiasNOLaborables),"") -> 44063 | M186: =+IF(C186="","",IF(I186="","SIN RESPUESTA",(IF(I186<=L186,"A TIEMPO","FUERA DE TIEMPO")))) -> A TIEMPO | N186: =IF(I186="","",NETWORKDAYS(C186+1,I186,DiasNOLaborables)) -> 3 | R186: 20
A187: 176 | B187: 20209050061632 | C187: 44039 | D187: MODULO CONTACTENOS | E187: SOLICITUD DE INFORMACIÓN Y DOCUMENTOS | F187: SOLICITUD DE INFORMACIÓN HIDROMETEOROLÓGICA | G187: NO | H187: GRUPO DE SERVICIO AL CIUDADANO | I187: 44042 | J187: CORREO ELECTRÓNICO | L187: =IFERROR(WORKDAY(C187,R187,DiasNOLaborables),"") -> 44068 | M187: =+IF(C187="","",IF(I187="","SIN RESPUESTA",(IF(I187<=L187,"A TIEMPO","FUERA DE TIEMPO")))) -> A TIEMPO | N187: =IF(I187="","",NETWORKDAYS(C187+1,I187,DiasNOLaborables)) -> 3 | R187: 20
A188: 177 | B188: 20209050061712 | C188: 44039 | D188: MODULO CONTACTENOS | E188: SOLICITUD DE INFORMACIÓN Y DOCUMENTOS | F188: SOLICITUD DE INFORMACIÓN HIDROMETEOROLÓGICA | G188: NO | H188: GRUPO DE SERVICIO AL CIUDADANO | I188: 44042 | J188: CORREO ELECTRÓNICO | L188: =IFERROR(WORKDAY(C188,R188,DiasNOLaborables),"") -> 44068 | M188: =+IF(C188="","",IF(I188="","SIN RESPUESTA",(IF(I188<=L188,"A TIEMPO","FUERA DE TIEMPO")))) -> A TIEMPO | N188: =IF(I188="","",NETWORKDAYS(C188+1,I188,DiasNOLaborables)) -> 3 | R188: 20
A189: 178 | B189: 20209050061722 | C189: 44039 | D189: MODULO CONTACTENOS | E189: SOLICITUD DE INFORMACIÓN Y DOCUMENTOS | F189: SOLICITUD DE INFORMACIÓN HIDROMETEOROLÓGICA | G189: NO | H189: GRUPO DE SERVICIO AL CIUDADANO | I189: 44042 | J189: CORREO ELECTRÓNICO | L189: =IFERROR(WORKDAY(C189,R189,DiasNOLaborables),"") -> 44068 | M189: =+IF(C189="","",IF(I189="","SIN RESPUESTA",(IF(I189<=L189,"A TIEMPO","FUERA DE TIEMPO")))) -> A TIEMPO | N189: =IF(I189="","",NETWORKDAYS(C189+1,I189,DiasNOLaborables)) -> 3 | R189: 20
A190: 179 | B190: 20209050061742 | C190: 44039 | D190: MODULO CONTACTENOS | E190: SOLICITUD DE INFORMACIÓN Y DOCUMENTOS | F190: SOLICITUD DE INFORMACIÓN HIDROMETEOROLÓGICA | G190: NO | H190: GRUPO DE SERVICIO AL CIUDADANO | I190: 44042 | J190: CORREO ELECTRÓNICO | L190: =IFERROR(WORKDAY(C190,R190,DiasNOLaborables),"") -> 44068 | M190: =+IF(C190="","",IF(I190="","SIN RESPUESTA",(IF(I190<=L190,"A TIEMPO","FUERA DE TIEMPO")))) -> A TIEMPO | N190: =IF(I190="","",NETWORKDAYS(C190+1,I190,DiasNOLaborables)) -> 3 | R190: 20
A191: 180 | B191: 20209050061792 | C191: 44040 | D191: MODULO CONTACTENOS | E191: SOLICITUD DE INFORMACIÓN Y DOCUMENTOS | F191: SOLICITUD DE INFORMACIÓN HIDROMETEOROLÓGICA | G191: NO | H191: GRUPO DE SERVICIO AL CIUDADANO | I191: 44042 | J191: CORREO ELECTRÓNICO | L191: =IFERROR(WORKDAY(C191,R191,DiasNOLaborables),"") -> 44069 | M191: =+IF(C191="","",IF(I191="","SIN RESPUESTA",(IF(I191<=L191,"A TIEMPO","FUERA DE TIEMPO")))) -> A TIEMPO | N191: =IF(I191="","",NETWORKDAYS(C191+1,I191,DiasNOLaborables)) -> 2 | R191: 20
A192: 181 | B192: 20200719195444 | C192: 44031 | D192: WEB (MÓDULO DE SOLICITUD DE INFORMACIÓN HIDROMETEOROLÓGICA) | E192: SOLICITUD DE INFORMACIÓN Y DOCUMENTOS | F192: SOLICITUD DE INFORMACIÓN HIDROMETEOROLÓGICA | G192: NO | H192: GRUPO DE SERVICIO AL CIUDADANO | I192: 44046 | J192: CORREO ELECTRÓNICO | L192: =IFERROR(WORKDAY(C192,R192,DiasNOLaborables),"") -> 44061 | M192: =+IF(C192="","",IF(I192="","SIN RESPUESTA",(IF(I192<=L192,"A TIEMPO","FUERA DE TIEMPO")))) -> A TIEMPO | N192: =IF(I192="","",NETWORKDAYS(C192+1,I192,DiasNOLaborables)) -> 10 | R192: 20
A193: 182 | B193: 20200719195320 | C193: 44031 | D193: WEB (MÓDULO DE SOLICITUD DE INFORMACIÓN HIDROMETEOROLÓGICA) | E193: SOLICITUD DE INFORMACIÓN Y DOCUMENTOS | F193: SOLICITUD DE INFORMACIÓN HIDROMETEOROLÓGICA | G193: NO | H193: GRUPO DE SERVICIO AL CIUDADANO | I193: 44046 | J193: CORREO ELECTRÓNICO | L193: =IFERROR(WORKDAY(C193,R193,DiasNOLaborables),"") -> 44061 | M193: =+IF(C193="","",IF(I193="","SIN RESPUESTA",(IF(I193<=L193,"A TIEMPO","FUERA DE TIEMPO")))) -> A TIEMPO | N193: =IF(I193="","",NETWORKDAYS(C193+1,I193,DiasNOLaborables)) -> 10 | R193: 20
A194: 183 | B194: 20200719195153 | C194: 44031 | D194: WEB (MÓDULO DE SOLICITUD DE INFORMACIÓN HIDROMETEOROLÓGICA) | E194: SOLICITUD DE INFORMACIÓN Y DOCUMENTOS | F194: SOLICITUD DE INFORMACIÓN HIDROMETEOROLÓGICA | G194: NO | H194: GRUPO DE SERVICIO AL CIUDADANO | I194: 44046 | J194: CORREO ELECTRÓNICO | L194: =IFERROR(WORKDAY(C194,R194,DiasNOLaborables),"") -> 44061 | M194: =+IF(C194="","",IF(I194="","SIN RESPUESTA",(IF(I194<=L194,"A TIEMPO","FUERA DE TIEMPO")))) -> A TIEMPO | N194: =IF(I194="","",NETWORKDAYS(C194+1,I194,DiasNOLaborables)) -> 10 | R194: 20
A195: 184 | B195: 20200719194921 | C195: 44031 | D195: WEB (MÓDULO DE SOLICITUD DE INFORMACIÓN HIDROMETEOROLÓGICA) | E195: SOLICITUD DE INFORMACIÓN Y DOCUMENTOS | F195: SOLICITUD DE INFORMACIÓN HIDROMETEOROLÓGICA | G195: NO | H195: GRUPO DE SERVICIO AL CIUDADANO | I195: 44046 | J195: CORREO ELECTRÓNICO | L195: =IFERROR(WORKDAY(C195,R195,DiasNOLaborables),"") -> 44061 | M195: =+IF(C195="","",IF(I195="","SIN RESPUESTA",(IF(I195<=L195,"A TIEMPO","FUERA DE TIEMPO")))) -> A TIEMPO | N195: =IF(I195="","",NETWORKDAYS(C195+1,I195,DiasNOLaborables)) -> 10 | R195: 20
A196: 185 | B196: 20200719194655 | C196: 44031 | D196: WEB (MÓDULO DE SOLICITUD DE INFORMACIÓN HIDROMETEOROLÓGICA) | E196: SOLICITUD DE INFORMACIÓN Y DOCUMENTOS | F196: SOLICITUD DE INFORMACIÓN HIDROMETEOROLÓGICA | G196: NO | H196: GRUPO DE SERVICIO AL CIUDADANO | I196: 44046 | J196: CORREO ELECTRÓNICO | L196: =IFERROR(WORKDAY(C196,R196,DiasNOLaborables),"") -> 44061 | M196: =+IF(C196="","",IF(I196="","SIN RESPUESTA",(IF(I196<=L196,"A TIEMPO","FUERA DE TIEMPO")))) -> A TIEMPO | N196: =IF(I196="","",NETWORKDAYS(C196+1,I196,DiasNOLaborables)) -> 10 | R196: 20
A197: 186 | B197: 20200719194405 | C197: 44031 | D197: WEB (MÓDULO DE SOLICITUD DE INFORMACIÓN HIDROMETEOROLÓGICA) | E197: SOLICITUD DE INFORMACIÓN Y DOCUMENTOS | F197: SOLICITUD DE INFORMACIÓN HIDROMETEOROLÓGICA | G197: NO | H197: GRUPO DE SERVICIO AL CIUDADANO | I197: 44046 | J197: CORREO ELECTRÓNICO | L197: =IFERROR(WORKDAY(C197,R197,DiasNOLaborables),"") -> 44061 | M197: =+IF(C197="","",IF(I197="","SIN RESPUESTA",(IF(I197<=L197,"A TIEMPO","FUERA DE TIEMPO")))) -> A TIEMPO | N197: =IF(I197="","",NETWORKDAYS(C197+1,I197,DiasNOLaborables)) -> 10 | R197: 20
A198: 187 | B198: 20200719194139 | C198: 44031 | D198: WEB (MÓDULO DE SOLICITUD DE INFORMACIÓN HIDROMETEOROLÓGICA) | E198: SOLICITUD DE INFORMACIÓN Y DOCUMENTOS | F198: SOLICITUD DE INFORMACIÓN HIDROMETEOROLÓGICA | G198: NO | H198: GRUPO DE SERVICIO AL CIUDADANO | I198: 44046 | J198: CORREO ELECTRÓNICO | L198: =IFERROR(WORKDAY(C198,R198,DiasNOLaborables),"") -> 44061 | M198: =+IF(C198="","",IF(I198="","SIN RESPUESTA",(IF(I198<=L198,"A TIEMPO","FUERA DE TIEMPO")))) -> A TIEMPO | N198: =IF(I198="","",NETWORKDAYS(C198+1,I198,DiasNOLaborables)) -> 10 | R198: 20
A199: 188 | B199: 20200719193914 | C199: 44031 | D199: WEB (MÓDULO DE SOLICITUD DE INFORMACIÓN HIDROMETEOROLÓGICA) | E199: SOLICITUD DE INFORMACIÓN Y DOCUMENTOS | F199: SOLICITUD DE INFORMACIÓN HIDROMETEOROLÓGICA | G199: NO | H199: GRUPO DE SERVICIO AL CIUDADANO | I199: 44046 | J199: CORREO ELECTRÓNICO | L199: =IFERROR(WORKDAY(C199,R199,DiasNOLaborables),"") -> 44061 | M199: =+IF(C199="","",IF(I199="","SIN RESPUESTA",(IF(I199<=L199,"A TIEMPO","FUERA DE TIEMPO")))) -> A TIEMPO | N199: =IF(I199="","",NETWORKDAYS(C199+1,I199,DiasNOLaborables)) -> 10 | R199: 20
A200: 189 | B200: 20200719193645 | C200: 44031 | D200: WEB (MÓDULO DE SOLICITUD DE INFORMACIÓN HIDROMETEOROLÓGICA) | E200: SOLICITUD DE INFORMACIÓN Y DOCUMENTOS | F200: SOLICITUD DE INFORMACIÓN HIDROMETEOROLÓGICA | G200: NO | H200: GRUPO DE SERVICIO AL CIUDADANO | I200: 44046 | J200: CORREO ELECTRÓNICO | L200: =IFERROR(WORKDAY(C200,R200,DiasNOLaborables),"") -> 44061 | M200: =+IF(C200="","",IF(I200="","SIN RESPUESTA",(IF(I200<=L200,"A TIEMPO","FUERA DE TIEMPO")))) -> A TIEMPO | N200: =IF(I200="","",NETWORKDAYS(C200+1,I200,DiasNOLaborables)) -> 10 | R200: 20
... 3515 more rows

Sheet Hoja5
E1: TIPO DE ENTIDAD O USUARIO | F1: (Todas)
I2: ESTADO (A TIEMPO, FUERA DE TIEMPO, SIN RESPUESTA) | J2: (Todas) | O2: ESTADO | P2: CANTIDAD | Q2: PROMEDIO | S2: USUARIO | T2: cantidad | U2: PROMEDIO | W2: CANAL | X2: CANTIDAD | Y2: PROMEDIO | AA2: PRODUCTO O SERVICIO SOLICITADO | AB2: CANTIDAD | AC2: PROMEDIO | AE2: ESTADO | AF2: CANTIDA | AG2: DIAS PROMEDIO | AI2: MEDIO RECEPCION | AJ2: CANTIDAD | AK2: PROMEDIO | AM2: DESDE | AN2: 44013 | AV2: GENERO | AW2: CANTIDAD | AX2: PROMEDIO
A3: DIAS, MES, TRIMESTRE | B3: CANTIDAD | C3: PROMEDIO | E3: TIPO REQUERIMIENTO | F3: CANTIDAD | G3: PROMEDIO | O3: A TIEMPO | P3: 3690 | Q3: 0.9962203024 | S3: CIUDADANO | T3: 1771 | U3: 0.4781317495 | W3: CORREO ELECTRÓNICO | X3: 3701 | Y3: 0.9991900648 | AA3: ACREDITACIÓN DE LABORATORIOS | AB3: 22 | AC3: 0.005939524838 | AE3: A TIEMPO | AF3: 3690 | AG3: 6.579945799 | AI3: CORREO CERTIFICADO | AJ3: 8 | AK3: 0.002159827214 | AM3: HASTA | AN3: 44104 | AV3: FEMENINO | AW3: 1516 | AX3: 0.409287257
A4: jul | B4: 1180 | C4: 0.318574514 | E4: CERTIFICACIONES DE TIEMPO, CLIMA Y EVENTOS HIDROLÓGICOS | F4: 292 | G4: 0.0788336933 | I4: DEPENDENCIA QUE RESPONDE | J4: CANTIDAD | K4: PROMEDIO | M4: CANTIDAD | O4: FUERA DE TIEMPO | P4: 13 | Q4: 0.003509719222 | S4: EMPRESA PRIVADA | T4: 513 | U4: 0.1384989201 | W4: PRESENCIAL | X4: 1 | Y4: 0.0002699784017 | AA4: ADMINISTRATIVA | AB4: 333 | AC4: 0.08990280778 | AE4: FUERA DE TIEMPO | AF4: 13 | AG4: 22.92307692 | AI4: CORREO ELECTRÓNICO | AJ4: 1444 | AK4: 0.3898488121 | AN4: =DATEDIF(AN2,AN3,"m")+1 -> 3 | AV4: MASCULINO | AW4: 1993 | AX4: 0.5380669546
A5: ago | B5: 1374 | C5: 0.370950324 | E5: CONSULTA | F5: 4 | G5: 0.001079913607 | I5: DIRECCIÓN GENERAL | J5: 1 | K5: 0.0002699784017 | M5: 3704 | O5: SIN RESPUESTA | P5: 1 | Q5: 0.0002699784017 | S5: ENTIDAD PÚBLICA | T5: 208 | U5: 0.05615550756 | W5: NS | X5: 2 | Y5: 0.0005399568035 | AA5: BOSQUES | AB5: 33 | AC5: 0.008909287257 | AE5: SIN RESPUESTA | AF5: 1 | AI5: MODULO CONTACTENOS | AJ5: 1447 | AK5: 0.3906587473 | AM5: Mes | AN5: Cantidad | AO5: En termino | AP5: Fuera de termino | AR5: Fecha | AS5: Cantidad PQRS | AT5: PROMEDIO | AV5: PERSONA JURÍDICA | AW5: 195 | AX5: 0.05264578834
A6: sep | B6: 1150 | C6: 0.310475162 | E6: PETICIÓN | F6: 31 | G6: 0.008369330454 | I6: GRUPO DE ADMINISTRACIÓN Y DESARROLLO DEL TALENTO HUMANO | J6: 114 | K6: 0.0307775378 | O6: Total general | P6: 3704 | Q6: 1 | S6: EXTRANJERO | T6: 2 | U6: 0.0005399568035 | W6: Total general | X6: 3704 | Y6: 1 | AA6: CAMBIO CLIMÁTICO | AB6: 8 | AC6: 0.002159827214 | AE6: Total general | AF6: 3704 | AG6: 6.637321091 | AI6: WEB (MÓDULO DE SOLICITUD DE INFORMACIÓN HIDROMETEOROLÓGICA) | AJ6: 783 | AK6: 0.2113930886 | AM6: =IF(ROWS(AM$6:AM6)>AN$4,"",MIN(AN$3,EOMONTH(AM12,1))) -> 2020-07-31 | AN6: =COUNTIFS(Tabla1[FECHA DE REQUERIMIENTO (dd/mm/aaaa)],">"&AM12,Tabla1[FECHA DE REQUERIMIENTO (dd/mm/aaaa)],"<="&AM6) -> 1180 | AO6: =COUNTIFS(Tabla1[FECHA DE REQUERIMIENTO (dd/mm/aaaa)],">"&AM12,Tabla1[FECHA DE REQUERIMIENTO (dd/mm/aaaa)],"<="&AM6,Tabla1[ESTADO (A TIEMPO, FUERA DE TIEMPO, SIN RESPUESTA)],"A TIEMPO") -> 1177 | AP6: =AN6-AO6 -> 3 | AS6: 0 | AT6: 0 | AV6: Total general | AW6: 3704 | AX6: 1
A7: Total general | B7: 3704 | C7: 1 | E7: PETICIÓN ENTRE AUTORIDADES | F7: 7 | G7: 0.001889848812 | I7: GRUPO DE ATENCIÓN AL CIUDADANO | J7: 1276 | K7: 0.3444924406 | S7: FUNCIONARIO IDEAM | T7: 120 | U7: 0.03239740821 | AA7: CERTIFICACIONES DE TIEMPO Y CLIMA | AB7: 312 | AC7: 0.08423326134 | AI7: MODULO CONTACTENOS | AJ7: 22 | AK7: 0.005939524838 | AM7: =IF(ROWS(AM$6:AM7)>AN$4,"",MIN(AN$3,EOMONTH(AM6,1))) -> 2020-08-31 | AN7: =COUNTIFS(Tabla1[FECHA DE REQUERIMIENTO (dd/mm/aaaa)],">"&AM6,Tabla1[FECHA DE REQUERIMIENTO (dd/mm/aaaa)],"<="&AM7) -> 1374 | AO7: =COUNTIFS(Tabla1[FECHA DE REQUERIMIENTO (dd/mm/aaaa)],">"&AM6,Tabla1[FECHA DE REQUERIMIENTO (dd/mm/aaaa)],"<="&AM7,Tabla1[ESTADO (A TIEMPO, FUERA DE TIEMPO, SIN RESPUESTA)],"A TIEMPO") -> 1371 | AP7: =AN7-AO7 -> 3 | AR7: 44043 | AS7: 1180 | AT7: 0.318574514
E8: PETICION VERBAL | F8: 1 | G8: 0.0002699784017 | I8: GRUPO DE GESTIÓN DOCUMENTAL Y CENTRO DE DOCUMENTACIÓN | J8: 13 | K8: 0.003509719222 | S8: ONG/ORG | T8: 12 | U8: 0.003239740821 | AA8: CERTIFICACIONES HIDROLOGICAS | AB8: 1 | AC8: 0.0002699784017 | AI8: Total general | AJ8: 3704 | AK8: 1 | AM8: =IF(ROWS(AM$6:AM8)>AN$4,"",MIN(AN$3,EOMONTH(AM7,1))) -> 2020-09-30 | AN8: =COUNTIFS(Tabla1[FECHA DE REQUERIMIENTO (dd/mm/aaaa)],">"&AM7,Tabla1[FECHA DE REQUERIMIENTO (dd/mm/aaaa)],"<="&AM8) -> 1150 | AO8: =COUNTIFS(Tabla1[FECHA DE REQUERIMIENTO (dd/mm/aaaa)],">"&AM7,Tabla1[FECHA DE REQUERIMIENTO (dd/mm/aaaa)],"<="&AM8,Tabla1[ESTADO (A TIEMPO, FUERA DE TIEMPO, SIN RESPUESTA)],"A TIEMPO") -> 1142 | AP8: 8 | AR8: 44074 | AS8: 1374 | AT8: 0.370950324
E9: REMISIÓN POR COMPETENCIA | F9: 2 | G9: 0.0005399568035 | I9: GRUPO DE SERVICIOS ADMINISTRATIVOS | J9: 3 | K9: 0.0008099352052 | S9: ACADEMIA | T9: 1078 | U9: 0.2910367171 | AA9: CLIMATOLOGÍA | AB9: 33 | AC9: 0.008909287257 | AM9: =IF(ROWS(AM$6:AM9)>AN$4,"",MIN(AN$3,EOMONTH(AM8,1))) ->  | AN9: =COUNTIFS(Tabla1[FECHA DE REQUERIMIENTO (dd/mm/aaaa)],">"&AM8,Tabla1[FECHA DE REQUERIMIENTO (dd/mm/aaaa)],"<="&AM9) -> 0 | AO9: =COUNTIFS(Tabla1[FECHA DE REQUERIMIENTO (dd/mm/aaaa)],">"&AM8,Tabla1[FECHA DE REQUERIMIENTO (dd/mm/aaaa)],"<="&AM9,Tabla1[ESTADO (A TIEMPO, FUERA DE TIEMPO, SIN RESPUESTA)],"A TIEMPO") -> 0 | AP9: 0 | AR9: 44104 | AS9: 1150 | AT9: 0.310475162
E10: SOLICITUD CONGRESITAS | F10: 12 | G10: 0.003239740821 | I10: GRUPO DE TESORERÍA | J10: 140 | K10: 0.03779697624 | S10: Total general | T10: 3704 | U10: 1 | AA10: ESTUDIO NACIONAL DEL AGUA | AB10: 2 | AC10: 0.0005399568035 | AM10: =IF(ROWS(AM$6:AM10)>AN$4,"",MIN(AN$3,EOMONTH(AM9,1))) ->  | AN10: =COUNTIFS(Tabla1[FECHA DE REQUERIMIENTO (dd/mm/aaaa)],">"&AM9,Tabla1[FECHA DE REQUERIMIENTO (dd/mm/aaaa)],"<="&AM10) -> 0 | AO10: =COUNTIFS(Tabla1[FECHA DE REQUERIMIENTO (dd/mm/aaaa)],">"&AM9,Tabla1[FECHA DE REQUERIMIENTO (dd/mm/aaaa)],"<="&AM10,Tabla1[ESTADO (A TIEMPO, FUERA DE TIEMPO, SIN RESPUESTA)],"A TIEMPO") -> 0 | AP10: 0 | AR10: Total general | AS10: 3704 | AT10: 1
E11: SOLICITUD DE INFORMACIÓN Y DOCUMENTOS | F11: 3335 | G11: 0.9003779698 | I11: OFICINA ASESORA DE PLANEACIÓN | J11: 2 | K11: 0.0005399568035 | AA11: INFORMES AMBIENTALES | AB11: 12 | AC11: 0.003239740821 | AM11: =IF(ROWS(AM$6:AM11)>AN$4,"",MIN(AN$3,EOMONTH(AM10,1))) ->  | AN11: =COUNTIFS(Tabla1[FECHA DE REQUERIMIENTO (dd/mm/aaaa)],">"&AM10,Tabla1[FECHA DE REQUERIMIENTO (dd/mm/aaaa)],"<="&AM11) -> 0 | AO11: =COUNTIFS(Tabla1[FECHA DE REQUERIMIENTO (dd/mm/aaaa)],">"&AM10,Tabla1[FECHA DE REQUERIMIENTO (dd/mm/aaaa)],"<="&AM11,Tabla1[ESTADO (A TIEMPO, FUERA DE TIEMPO, SIN RESPUESTA)],"A TIEMPO") -> 0 | AP11: =AN11-AO11 -> 0
E12: SOLICITUD JUDICIAL | F12: 20 | G12: 0.005399568035 | I12: OFICINA ASESORA JURÍDICA | J12: 73 | K12: 0.01970842333 | AA12: JURIDICO | AB12: 9 | AC12: 0.002429805616 | AM12: =AN2-1 -> 44012 | AN12: =SUM(OFFSET(AN6,,,$AN4,)) -> 3704 | AO12: =SUM(OFFSET(AO6,,,$AN4,)) -> 3690 | AP12: =SUM(OFFSET(AP6,,,$AN4,)) -> 14
E13: Total general | F13: 3704 | G13: 1 | I13: OFICINA DE INFORMÁTICA | J13: 124 | K13: 0.03347732181 | AA13: LABORATORIO DE CALIDAD AMBIENTAL | AB13: 1 | AC13: 0.0002699784017
I14: OFICINA DEL SERVICIO DE PRONÓSTICOS Y ALERTAS | J14: 12 | K14: 0.003239740821 | AA14: OPERACIÓN DE REDES | AB14: 7 | AC14: 0.001889848812
I15: SECRETARÍA GENERAL | J15: 1 | K15: 0.0002699784017 | AA15: PRONÓSTICOS Y ALERTAS | AB15: 5 | AC15: 0.001349892009
I16: SUBDIRECCIÓN DE ECOSISTEMAS E INFORMACIÓN AMBIENTAL | J16: 129 | K16: 0.03482721382 | AA16: REGISTROS AMBIENTALES | AB16: 248 | AC16: 0.06695464363
I17: SUBDIRECCIÓN DE ESTUDIOS AMBIENTALES | J17: 370 | K17: 0.09989200864 | AA17: SIA | AB17: 11 | AC17: 0.002969762419
I18: SUBDIRECCIÓN DE HIDROLOGÍA | J18: 60 | K18: 0.0161987041 | AA18: SIRH | AB18: 15 | AC18: 0.004049676026
I19: SUBDIRECCIÓN DE METEOROLOGÍA | J19: 383 | K19: 0.1034017279 | AA19: SOLICITUD DE INFORMACIÓN HIDROMETEOROLÓGICA | AB19: 2634 | AC19: 0.7111231102
I20: GRUPO DE SERVICIO AL CIUDADANO | J20: 1003 | K20: 0.2707883369 | AA20: SUELOS Y TIERRAS | AB20: 3 | AC20: 0.0008099352052
I21: Total general | J21: 3704 | K21: 1 | AA21: WEB Y CORREO | AB21: 15 | AC21: 0.004049676026
AA22: Total general | AB22: 3704 | AC22: 1

Sheet Hoja2
A2: ANALISIS ESTADO SOLICITUDES
A16: TOTAL SOLICITUDES | G16: =+Hoja5!M5 -> 3704
